Workbook

Sheet User's Guide
C2: Tanzania: Water Sector Project
C6: Lower Ruvu Plant Expansion Activity
B9: ERR Version | C9: Original ERR | D9: Closeout ERR
B10: Date of ERR | C10: 2007-08-24 | D10: 2016-02-08
B11: Amount of MCC funds | C11: $25.2 million | D11: $45.7 million
B12: Project Description | C12: Tanzania faces a serious shortage of access to potable water, resulting in a high incidence of water-related diseases, decreased workforce productivity, and constrained business growth. The Water Sector Project includes investments in bulk water supply for two urban areas, Dar es Salaam and Morogoro, which investments will increase the quantity and reliability of potable water for domestic and commercial use. By increasing the volume of water supply, the Water Sector Project is expected to reduce the incidence of water-related disease, increase time available for productive activities including education, promote greater investments in physical capital, and, ultimately, lead to an increase in income. | D12: Tanzania faces a serious shortage of water infrastructure, resulting in a high incidence of water-related diseases, decreased workforce productivity, and constrained business growth. The Lower Ruvu Plant Expansion Activity expanded the capacity of the Lower Ruvu water treatment plant, which helped expand the capacity of the Dar es Salaam water system, and provided technical support to DAWASA This is expected to lead to a decrease in household water treatment expenditures, improved health outcomes and additional water available for enterprises.
B13: Benefit streams included in ERR | C13: Increased income due to fewer sick days | D13: Reduced household expenditures on water treatment
C14: Increased income due to less downtime caring for sick children | D14: Diarrheal disease treatment cost savings
C15: Increased education (human capital) | D15: Reduced opportunity cost from fewer sick days
C16: Increased household investment (physical capital) | D16: Lifetime income gains due to decreased stunting
C17: Increased business investment and economic activity | D17: Increased water available to enterprises
B18: Costs included in ERR (not borne by MCC) | C18: Operations and maintenance | D18: Increased water production and delivery costs
D19: Expanded tranmission main connecting the Lower Ruvu Plant with the DAWASA network
B20: ERR estimations and time horizon | C20: 28.2% over 20 years | D20: 15.0% over 20 years
B22: Table of Contents
B24: Activity Description
B25: One should read this sheet first, as it offers a summary of the project, a list of components, and states the economic rationale for the project.
B27: ERR & Sensitivity Analysis
B28: A brief summary of the project's key parameters and ERR calculations.
B30: ERR
B31: This sheet enumerates the project's investment benefits and costs over 20 years
B33: Assumptions
B34: Shows the assumed consumer profile and other assumptions used in the model.
B36: Costs
B37: Lists the costs of the project, along with DAWASCO operation and maintenance cost estimates.
B39: Savings
B40: Estimates the household cost savings from reduced water treatment over 20 years
B42: Health
B43: Estimates the benefits over 20 years from reduced diarrheal disease and improved health outcomes
B45: Commercial
B46: Estimates the benefits to businesses of additional water available for productive purposes.
B48: Beneficiaries
B49: Estimates the number of project beneficiaries.
B51: Poverty Scorecard
B52: This worksheet shows the cost effectiveness of the project broken out into different poverty categories.

Sheet Activity Description
B2: Tanzania: Lower Ruvu Plant Expansion Activity
B4: Lower Ruvu Plant Expansion Activity
B6: Activity Design History
B8: Original Project
B10: Tanzania faces a serious shortage of access to potable water, resulting in a high incidence of water-related diseases, decreased workforce productivity, and constrained business growth. The Lower Ruvu Plant Expansion Activity includes investments in bulk water supply for the Dar es Salaam urban water system, which will increase the quantity and reliability of potable water for domestic and commercial use.
B12: Project Changes at Closeout
B13: Although the costs of the Lower Ruvu Plant Activity increased substantially from 2007 to 2014, the overall scope of the project did not change significantly.
B15: Activity Components
B17: 1. Lower Ruvu Plant Expansion Activity. MCC Funding will be used to expand the capacity of the Lower Ruvu water treatment plant serving the Dar es Salaam area, from about 180 million liters per day to approximately 270 million liters per day. Specifically, MCC Funding will support:
B18: a. Feasibility studies, final design and an environmental and social assessment, together with any resulting resettlement action plans and environmental management plans, and occupational health and safety standards.
B19: b. Raw water system (e.g., grit chamber and pumps), treatment system (e.g., flow diversion chamber, crossflow clarifier, declining rate filters, and chemical feed facilities), treated water system (e.g., high service pump station and clearwell), power and controls system, and solid handling facility (e.g., sludge lagoon system).
B20: c. Capacity building and technical support for Dar es Salaam Water and Sewerage Authority (DAWASA).
B21: d. Project coordination and construction supervision of all improvements and upgrades under the Lower Ruvu Plant Expansion Activity.
B23: Economic Rationale
B25: Original Project ERR
B27: In modeling the impact of MCC’s water sector investments on economic growth and incomes, the original ERR included the following benefits related to growth in income:
B28: For the analysis of the Water Sector Project, benefits accrue through increases in one of two intermediate results: (1) average liters of water consumption per capita per day; and (2) increases in the fraction of households served by the water system. The specific benefit streams included in the model are:
B29: 1. Increased income due to fewer sick days. Reductions in morbidity associated with water-related disease decrease the number of days workers lose to illness. The existing prevalence rates of four key water-related illnesses (diarrhea, cholera, typhoid, and dysentery) are used to estimate the current number of days being lost to illness. The greater the increase in liters consumed, the lower the base level of liter consumption from which the individual begins, and the larger the increase in the fraction of households connected to the water system, the larger the drop in the prevalence of water-related disease.
B30: 2. Increased income due to less downtime caring for sick children. A similar exercise is used to determine the extra income that can be earned with the reduction in time needed to care for sick children. There are separate estimates of the amount of time needed to care for each bout of child water-related illness, and the prevalence of such illness among children. The methodology is, however, the same.
B31: 3. Increased education (human capital). Given the link between improved water supply and reductions in mortality (as well as morbidity), this analysis examines the implications of mortality reductions on the accumulation of both human and physical capital. Empirical evidence on mortality reductions associated with improved water supply suggests that reductions in overall human mortality of 4% due to the project are possible. This reduction is likely to lead to both increased schooling and increased investment by individuals in the affected area.
B32: 4. Increased household investment (physical capital). Empirical evidence also suggests that reduced mortality leads to greater rates of investment in physical capital, as individuals expect to enjoy a longer time span of returns from this capital. Our estimates suggest that GDP growth will be 0.15 percentage points higher due specifically to these effects.
B33: 5. Increased business investment and economic activity. Water is a key input into production for many industries, and increasing the supply of water to commercial industries should lead to increased investment and economic activity resulting in new jobs and added income for local households. As a result of water projects, the growth rate of local GDP is increased, if only during a transition period.
B35: Closeout ERR
B36: As described above, the original ERR model in 2007 used a methodology that relied on macroeconomic data and projected impacts to estimate project benefits. However, in the intervening years, MCC standard practice for analyzing water, sanitation and hygience (WASH) interventions has coalesced around a microeconomic approach that estimates the benefits for individuals and households and aggregates them to estimate the overall project benefits.
B37: For the Lower Ruvu Plant Expansion Project, the individual and household benefits included in this cost-benefit analysis model are:
B38: 1. Reduced household expenditures on water treatment. Prior to the project, households in Dar es Salaam did not trust the quality of the municipal water supply, so many of them treated water with boiling, bleach or filters to make it safer for consumption. With the expanded treatment capacity in the water system post-project, households will be able to forgo these treatment expenses, resulting in increased income for the household.
B39: 2. Improved health outcomes, resulting in:
B40: a. Treatment cost savings. The improved quality of the water is expected to result in a reduced incidence of diarrheal disease, so households will spend less each year on treating illnesses.
B41: b. Reduced opportunity cost from fewer sick days. The reduced incidence of diarrheal disease will also result in fewer people needing to miss work to care for themselves or family members, resulting in increased income over the course of a year or more.
B42: c. Lifetime income gains due to decreased child stunting. Several health studies, such as Teshome et al (2009), have shown that diarrheal disease increases the risks of stunting in children under five years of age. According to Alderman et al (2006), childhood stunting is correlated with reduced educational attainment, resulting in lower lifetime incomes. This model estimates the reduction in stunting resulting from a lower incidence of diarrheal disease and projects the subsequent increase in lifetime earnings using results from a Mincer regression to estimate returns to the additional years of education.
B43: 3. Increased water available to enterprises. Water is a key input into production for many industries, and increasing the supply of water to commercial industries should lead to increased investment and output in those industries. In many economic models, the increased volume of water supplied to commercial enterprises would be valued at those firms' willingness-to-pay for an additional cubic meter of water. However, because we do not have much data on Morogoro businesses' willingness-to-pay for water, this model estimates the value of the additional water at DAWASCO's current commercial tariff. Existing businesses have shown a willingness-to-pay at least at this current level, although it is possible that they could experience additional consumer surplus if they would be willing to pay much higher than DAWASCO's current tariff levels.
B45: Last updated: 2/8/2016

Sheet CB_DATA_ (hidden)
A1: Crystal Ball Data
P2: =_xll.CB.RecalcCounterFN() -> 
A3: Workbook Variables | B3: Last Var Column | C3: 0
A4: Name:
A5: Value:
A7: Worksheet Data | B7: Last Data Column Used
B8: 3
A10: Sheet Ref
A11: =CB_DATA_!#REF! ->  | B11: ='ERR & Sensitivity Analysis'!#REF! ->  | C11: =ERR!#REF! -> 
A13: Sheet Guid
A14: d6978d45-27bb-4443-a0ef-c02f45af2fc0 | B14: a04d90d5-a9aa-41da-82e0-2202fce3dedf | C14: 9885d39f-b898-4126-aeea-c3ef839a3c66
A16: Deleted sheet count
A19: Last row used
A20: 28 | B20: 26 | C20: 26
A25: Data blocks
A26: CB_Block_0
A27: 㜸〱敤㕣㕢㙣ㅣ㔷ㄹ摥㌳摥㔹敦慣敤搸㡤搳㑢㑡㘹つ愵㉤搴挱㡤搳㠴戶㐰〸扥㌴㤷攲挴㙥散愴㈰㐰㥢昱敥㤹㜸㥡㥤ㄹ㜷㘶搶㠹㑢愵㔶搰㜲㉢〵㠹㥢㈸㤴㡢㉡〴攲㠵换㑢戹扥㈰㈱㠱㔰㤱㐰㠲〷〴て〵㈱㤰〰愱㐸㍣挰〳ㄲ㝣摦㤹㤹摤搹㕤敦搸摤戶攰㈲ㅦ挷扦捦㥣摢㥣㜳晥敢昹晦㌳挹㠹㕣㉥昷㙦㈴晥㘵捡㌳㜳摤攲㝡㄰㑡㘷㘲挶慢搵㘴㈵戴㍤㌷㤸㤸昲㝤㜳㝤捥づ挲㍥㌴㈸㤴㙤搴〷㝡㌹戰ㅦ㤴挵昲㥡昴〳㌴搲㜳戹㘲搱搰㔰捦㐱昸㍢㤲㍣ㄸ散㌵㤸〷㔸㥡㤹㥥㕦扥ㅦ愳㉥㠶㥥㉦昷㡤㥤㡤晡ㅥ㥥㥣㥣挰捦挱㠳㜷㑥散摦㌷㌶㔳慦㠵㜵㕦ㅥ㜶㘵㍤昴捤摡扥戱㠵晡㜲捤慥扣㑤慥㉦㜹ㄷ愴㝢㔸㉥敦扦㝤搹㍣㜸攷攴挱㐳㠷慣扢敥扡㜳㄰慦捥㥤㥡㤹㕥昰愵ㄵ扣㐸㘳敡㥣昲挱㔹㔹戱戹㌶㈹㝤摢㍤㍦㌱㌳㡤㝦愹昹攳改㡥㠹挵ㄵ㈹㐳扥㕡晡搲慤挸挰㐰挷〱㘷㉡〸敡捥㉡㌷捦㜰㡥㘲愹ㄵ㌳〸㜵㘷㐶搶㙡㠶㤳㡣㕡㜴收戱㜷㌵㜳㝤搰㔹㤴㙥㘰㠷昶㥡ㅤ慥ㄷ㥣㈵っ㔴ㅤ㜲捥〴昲戴改㥥㤷愷㑣㐷敡捥戱扡㕤捤㐷㈹搷㜷㑢㌲㐴㝡㘲㙡昹ㄳ㔳㠱㌳戳㘲晡㙡㐶〱㌷㈶愳敤㔱扦搲摡昶挶敥攳㜲敡敡つㅣ昳愶敥敤㔰㜳搶昴ㅢ㉤挷扢户㡣ㄷ摦㍡㠳摢扡户㑦敤㔱㙢㥦搷㜵敦愳戶戲戵戵ㄸ㠸改㕢敤㈸ㄶ㘳ㄴ〸晡〹㡡〴㐴愰㔱㈲ㄸ㈰ㄸ〴㄰昹扦㠳㑢搲ㅤ㔹愵㤵㑤慤扣慣㤵㉢㕡戹慡㤵愵㔶戶戴昲㜹慤扣愲㤵㙤慤㝣扦㔶扥㠰㌶㐹㉡昶昷㙢㜱晡昰晢晦昱挳㍦晦攵慢㌳㕦㜸晣ㄷて㍦㍡㝤昶㌷㠳扢搰攸摥㜸㔲戳扥㜹ㄱ愴搶愴攲〳ㄳ晢昹戳㌹㔷㠰㈹慣㐳搶ㅤ搶攴㘴昵搰㝥昳㜶㔳攷戲㌲㤰摦㐲㈸㈳㘸㍢㘸摤㘷扢㔵敦愲挲摤㜵搳㘶㈰㥢ㅢ㌷ㅥ搷㑤㝢㜵户ㅡ扣㘲攳捡挵搰っ攵戵敤㜵捤㐱㍡扡㉤㠲慤㘴愰摥㜷㝤㝢户戳㘶慤㉥愷㉥搹㔱昵㉢摢慡㥤〵摦㕢敥㕥㝢搴㤷て㌴㙡㍢㘶㌴〵愱戶愶挶敥㔸㘵㔴ㄵ捤㙢㙣㘶挵ぢ愴慢愶㌷敥㉣搸㤵ぢ搲㕦㤴ㄴ㠹戲慡㤶㝡㈵慢㘲慥ㅦ㥦㜷戱㔰㜰㙢昵搵改㔲敢敥㑢㈱㤸㔹㔶㌱摦㔵改㠷敢㑢收㜲㑤㕥搵搲㈴㝡㈷㉡昶戶ㄴㅦ昵㉡昵㘰挶㜳㐳摦慢戵搶㑣㔵搷㑣㐸㥡敡㐹慦㉡昳昹㥣ㄲち㄰戸㝤㝤㐲攴㙥敤捥ぢちㄱ㈹ㄴ㤳㤱慦㘹㈵扢㠹搳㔸ㅤ㔶㔱㤳愴㐹敤㌵㥢っ挶昹㉡ㄹ㤳挱㠱愹㌵㔱㝦昰愵慦摤㘴搸〶收㕥摡挶㥡㌶ㅡ慦晥敥㌵改㠶挷㑤户㕡㤳㝥愶昶ㄳ㥣㤱㌱っ愰㕦㠶㐰攸扡㝢㔴㜵攲㤲㔸搷㉦摡搵㜰愵戰㈲敤昳㉢㈱捡愰㈱㡢㐵㙥㙤㐷㌲慥㐰㤱戱㥢㘰ㄴ愰㔴捡ㄵ昶戰㔱愱㠴㤴搳㈹㥤㌲㜸戹㐵㤰戳㕦ぢ㉦て㕡㐷敤㕡㈸㈳愱㍣㙣〱㈳㤱㔶㔳攸ㅢ㈲㠹晡㘶㈵㔲ㄸ㝢慣ㄹ㔰愹㘹扢攱㝡㤳㙦㍢戸㈴㈲愲ㅤ㔹戰敤㘴〱㐵㐱慢㍣挸攰㌵㄰㑤㥢㌴挸㙥㥣㈲㈲戲㐱㠶㘶挷挸慤㐴挶昶ㄹ㌲〲敤搳㐴挸搶晢扢换〸ㄲ㝢㈷㤱戲㔳㔷㝥摣㤱㘶ㅢ搹昲㤱㌴扢ㄲㅢ㘷㕣㐵㜰㌵挱㌵〴㝢〱挴ㅦ㈱攱㈸攵㤰㙦㑤挶㉢昰㙣㕣㐷昰㑡〰挸㈷㠳㌲㈷ㄶ㔵戴愱戶㘲㐷戲摤㄰散㘴㘵ㄴ㐷愲㠸㤶㜱挳捥ㅣ㜲ㄴ愲㘳慢㜳㝢攸摡扣搲戱㌷㜷愷捤昴㜲㐸㤱ㄹ㑤搳㙢摤愴㘹㝡㈳搸戴㐷扤㜵〳扡ㅡ㘳〴慦〲㈸ㄹ慦㈶㠴㜲愱挱扢㌵㡢㥥㈶攵换挲㉣㡡㡣愱ㅥㄵ㝣㑣挸㍣〲㘴〸戹㡥攳换㡥つ㑤㜳㜰摣㝡搹摢搰晢扡昳㜷㡣昴㌶扤戹愳㜷攸㉦㝡㥥㔶昴㡤㘰㉦昱摢慥㍡收㈶㔴ㅢ㌷ㄳ摣〲搰愶㘳㜸晡㝥扥㥥〲㘵ㄶ㍢㈹捣敤愶搷㐵㔹戹㑢敢慢㔲㘹愰㐱㙢挹昴捦换㄰ㅥ㡣ㄳ戳戰㠵㍤摦㤷㌵ㅣ㙡慢慡㠰攷㤷慢㕢ぢ㠳愳扥攷戰㝣挷㐶づ㕥ㄶ㡡㈱㥦搷晡㜲㙤㌶㜲㠶慤㤹昲㌹愵㈸㠷㍡昸昶敥㐲㈲搵愹㤵扣搸㉦晢㝣戹㈳㐹㝡㤰㈴慦挳戶ㅡ户〲㐰㑡㠸㕦㜵㤵㈸晢搸散昵慡㔹慢挵㑡て㕦挶改愴捤㠷搸㈱㐷〶㈲㠷敤㌴晣〷挱㤰戳㘸㍢つ㘱㌱攰㉣㐸扦〲摦㠲㕤㤳愵挸㉤㑢㔱戳㈳㉢㕥㈶戲愲慦慦攳㍣㥤攱㕦㔳㜴搲㈶㈵㌲戹㍤戳㌲攳㉣摥㈴㉡扡㈱㈹㔴㌲㕣㐳つ〹㐴捡㘳摢ㅤㄱ搳㠳㠸戹つㅢ㘷散㈷㤸㈴㌸〰愰晦っ㤲㘶慢ㅢ捦㜰㔸晦ㅡ㕤摡攵㜲慥㐸㌴㈸ㄷ攱戳㕤㠵搵㈱扥收つ〴㜷〰戴㤹㍦㜴㐰㘶㄰愲㐲㜹㡡㄰㔵ㄸ挳㍡㙢换㡢愴㠱㕤ㄶ〲㑢㌳昵㈰昴ㅣ㐶㤶㠶慣㔹敦㤴ㄷ捥摡挱㉡㈲㔱愳㔶㥣戹㙦㐵扡愰㉥ㅦ戶㑦㕢㤹户扡㉡慢㠶戵攸搵㈱摡㑥捣㙥㠷㠳㌹戶〳戶愴㍡㥢㙢〲愹户昳㌱㠶㄰搸㘹攵㙦愵㌷㜶㑢摥㙦ㅥ晡㠶㥢㍢扡㘴㠷㌵㌹㘰㐵㑣挷㝣搱挲㉥㈲㜲㔰敤户㤶㔶㝣㈹㘷㠷慣㘳扥㕤慤搹慥㈴㌲㘰㘳㌲㔸㌷㈷捦㈳㑡戰攰㌱〶攸戹㐳搶㤲㙦扡挱慡挹㠰攲晡敥㤶㈷ㄵㄶ搱慤㘹摢つ昰ㅡ㠵㐵收㠷慤挵ㄵ敦㈲㈲戶㜵挷㍤㘶慥〶摢〲㉢㈴晡㈸㈹搴〸㑤㘸㥡㈸㙡挵㕥昱挳〳㜹㉥㐷摥换ㄳ㈸㕣攵㜴晡捣㌳戴㌷敤晡㌸㐶㐳㍢㥤㜳ㅡ㐴昴愸㔱搸㤷㈹㠵挹愹挶㕤散昳㐶㠰㝢㡥㥤㌹搱㡣捣扤愰㤸戵㑥㉦㝦㠶㡣㔷㘴搱〸㠴搰㐷户㉢㈲ㄵ㤶㤱㜲挰㠱挰㌸㥦摡挹慦㘴愹㌶愴扥㕤捤散㔱㐴㤲〶慤㌹㜳㔹搶㄰㡦㜶捣㜰㔷昴㐰㌳搶㌱㙢㐱㕣㌷攳㌹㡥㐹搲㈲㔹㉥㔶㑣㔲昰㔴㍤昴㑥摡慥㘱〱㈸晡㡢㡢捣㑢㈸㌲㉦愹愲㐱敢㌴㐳㠳㉡捦戱扣昳愶㙦㠷㉢㡥㕤㈹昲㠱攱扢㙤㐱㤳㘰㜲㑡摥㈴㈵㌲㘳慣捤㥡㍦〳㤳㉤㤸〰扡㈷㈰㐷戹㜵㐴㍦㈸㔷ㄳ〵晣㠸ㅥㅤ㑢㄰㌰捡㔳㙡扣ㄹ愳改敡㜶〴㐴㡥㑡㤷㤳㍢ㄸ㤷ㅦ㐶㐹㈴㠴㠸昵っㄲ㠱㔷㌰㈵攴改攲㉥㔸㘷㕣㍢〴昶㠸戱愳㜶㌸ㅢ〰攵〰挸慡攳敤戵ち慢愹㑥攳つ慤㜰㐳㘷㔵㡢㥡戸扥戳㍥慤㌷㕥戳㐱㜵愴㔱㔲㡡㘴戳㐶㑡戳㙣㌰挷敤愴㙡㠴㔲摣㠹戶ㄱ㔹㙥搳收扥㔳㡡扣〰挵愴㘸㈶㘷扣㐵ㄱち〲扤戱㡥愲捦㍥㥢㍣㔲ㄱㅢ摡〰㈵敡愹愸㙣㈸づ〹㥥挰戵㤳慡㉣挵㑦攰敦㕤㜱㜶扥ㅥ戶搴㤸㤷㐶攳㥡愹㕡㙤摥㠵㤵㔰㌱晤敡㌶㘱㘹慣㉤搲㌰㡡㍢㝢搵晥搱昶愶ㄸ㌱㘶㐳㠶㐵㌲晣挰㘰㐳㌰㔷㉡愲㑡敢㙣㠸㕢摤㈸㉥昲改愴㌴㕤㠵㠱挵戰㍡㉢搷㤴ㄹ搶戴攴㐷㔵㠷挶㘹㔱挹㔱挳㥡㕡づ愰搲㐳捡昱㌸愷ㄸ摣戰㑥搳㉤㠵㑢っ㄰扢㜱㙥愱ㄲ㈲戴摢ㄸ㠰㈷㠳敤㠳ㅤ散㐸ㄴ㍡愱㜵㐶〹㕡挸㈰摣搶㐵㤰㜷㝡挴㈸〴愹愵搲摦㡥㠸捦㍥挹昴戵㈳戹㈴ㄳ㌳ㄱ挳㕤ㄹ搶〳㤰㥢㡥㑣㤲㡢㐶㤳㠰㜹㈴搹㤴搰ㅡ㑣捡㘸㘲っ搱攴昳㐳摣攲㘱㉣㙢㤸㙣㔳挳㍤户搰㠶㌶慤慤敦戲㑥戸㤵㕡扤㉡㤵㉡㑥㘴戵搲挸摢〲㕦敡ち㘰挴㑤ㄹ晢ㄲ㙦捡〹ㅣ愵戸㘴㈲愹㜷扢摢㌸㠲敥㑡挸㘱㡣㐸昵㌱〰㤹攱㤶㔳〱戱㡥㝢ち戴て㜷㌷㉦㌰愸换㜳㄰㘹ㅤ㐵㤴㘵㜳戸㡦搷㠸㈲㉢㙥㑢㌵㥢昳收㍣摡散愹愲攳㜶㔴戴㉤㜰㠴㜵㐶〲慦㔰㠰㌱搲㈳㜷㜰㤰摣攵㌸扡㝢昹㘱昵㤸扢っ㔴㈸っ〸挶㜸㜹ち捡㘱㔷挱㐸㌴戸戵愶搵㉤ㄸ晤愵攵㙤㑣〱〸㠶㠱㘹搰愲㘵㘴攰捣㈰扦戹㠱㜳〳㕡㘵㐴㐸搳挱㔴挶㈸㐷攱戰〷搲挰㑤㍣㐸㉦㜹㔰㐲攱ㅥ㜵㌱㉣戹㥢㌸敥攰〸攴昹㔷戵ㄵ㉥㤸㈱慥扦戸㝢摢㡡愷慡㔵㥡扢昰捦㙤ぢ慣攲敡㐶㘴㡥敥㘹扢㤴愵搶㐴晢敥挶戶㡡昸戲攰㠱搹㠹攳㘶㔸㔹㔹っ搷愳㡢㕢扤㤲㠴晥〳昸㈳㌶㝣㍢㙤收扣换㡢愸㙢摣晢搲〵搷扢攸慡㜹改〱㙦晤㠱㐲㜰㠵戲㥦㤳㉣攵晥㡤ㅦ㤵戴㥣晥㝤㡣戸㤵㘹㜳㠰愶㠳㠴攳愸ㄴ㐹㠳㌱攴㌳攸〴戶㝢攳搶〰改㘴㑦ㅢ㥤㈸㐱戰㐳㈸敥昹ㄷ㡤㔰挴昷㠰㔶ㄲ㑢㜴㈴挷㥥㝦〵慣㉦扥㡢ㄲ㈲ㅣ捦戱ㄸ搱㕦㠵㕣〶敡㤴㈰㡦慦㜸昰㐲挸晦て㤶ㄲ㙥摥㤰㥤晥ぢ捣㉣扥搳㡥愲敢㠹愲㙦㜷愰㐸昰ㅡ㠸攲摦㝢㤰㐹㤲捥昰散昳ち㠴㜳㑤㍢〷搰㤷晣挲敦晦昰〰㍡ㄷㄳ㠷戲搱㄰㙡扢〹捦つㄳ愱慦挳㐴㘰昰㕥㤹〸㈷㤱ㄱ㡣攲㐷㈶㐲散〳㤹㐷挱收㈶〲㘳㝢ㄹ㠶㘰㉡搴㥡㜲㙢昰〴㜶㤵㐳晦搸㜱㕣扣㤵〱攲昹㔰㕡挱っ㍣㔲㔷㜷ㄶ㉦㤸扥改散㔵攵挷㝣〹㘵收㉦攱㈶户敡挲ㅥ搷㙥㔸愳㍡㙤攰慢㐸扣散㍢晥㤴慤摤㕦〷愶愲ㄴ戹敦㐵㔱ㄴ㕥㠰愷㐴昰摣㤰㝢捦㥥慦ㅦ晢摤㠳㡦ㅥ攱㙤戵㤸㔶昵㕢㤱敦㈵㘴㑦㝢〲㐱摤搴㐵㤱㉢昹㘱捥㐹㝣愲㘴慦搶攴戴改㉢㉢㈸㌰㥣㈴ㅢㄱ㕥㡡㌰㈳攲摢づ㈶㈶敥㍤㐴㈶收㐴㥢扢㔳㝤搸愴㕣㠴ㄳ愹㠹㉢㥦㕥ㄲ㌶ㄴ㕤ㄵ㔹㡦搶愶晥㑤愸愲攷㌹㤱㔶㉢㤱愷㑥㈶㈱扥搱慥敢づ㔱搷㐵〷ㄹ㠶晤ㄳ㈹㠵昸〳㈹㈴㝤㤰攱㠵〰㈵愵㑥㈳愳摦〶㤰ㄱ㔹㙢て昱搲ㅦ戰㈳〴㘴攳搲㕦㡦ㅦ戱㘰ㄷ㠱挵挴ㄷ摦敢㠹㤶戶㘸愲㥡ㄸ慡㔵㌶捤㈲㌲敡昰挲㠲挹愴㜴〹㤹㈴改〷㤰摢戲㍢㡡㉦ㄹ㜲愲挰㕢挴搸扡㐳㕦㕢挹戹摢慤攳收〷昴㑣㐱㈹っ㜷㌷㡢㜱㈰㔵㌱扡愸㘹㈹㉡㈲ㅣ㡥戲㡤㑥〳㜱ㄵ㜴㤶扢ㄷ愷㔲〴晦昸愵㄰敢挷㥢㐳㕦搹㕥㐳ㅤ攷昶㘳㠱晣㠵晤㜵㝤〶㘳攳慤攴ㄸ㐸搸㉤戵㉡㐶搷挳捦愰ぢㄷ㥤ㄳ㐶㌳慢㥥挵㈱晣㐹㌸慢㑦敢搰晦㡣㕥㉢捥㍡换摥っ㘳户攸晦户愳㘰㔳晤㉦ㄸ㝢㔳㠸㝣㐷㥣攱㠳捥昸挹愶㈱ㅢ敥〸㍣摢〸摥愸㠳戱愱戲っ㜹㐷戹㐵㝣扣ㅡ㔵㉢〹づ扦㔷扥晤㙡㐴愳㉦㙤摢㠱慥〲㤰戱㈱晤㉢㄰㐱㕤晢户捡慤攴㜴㕢㜸㈷㍡敥㌹㘹㔷㝣㉦昰慣㜰㙣ㄱ㐱摦㌱㝥㝢㘶挱收㤹ㄲ㕦㙥ㄷ㙡㌷㘲㈷〶摦㡤㍥愷收㈱戰㑦挹昰挵㡡㐵㌲戲戰戵㐸〶扦㐳ㅡ㐹㠵㤷愸ㅤ㠲㉢慣㝢敢㘶つ㥦慥捥挳搷ㄹ戲㘸㕢㈸扢挸攳摣㝥㐳㠳㕢㠷㍢㕡㙦㠳㍦㐸搶㈶㄰ㅣ㔳㑢㜸攷扢戹慦敤㝢搰摡㌶㕥㕢挰㤶扤昹摣㑡晡搳挰改搶摥搲㑡㌲㝣㈷扦㐸㉥ㄹ㘵㐲㕣摡㍦㠲扦㕢㜷搰㜲戴㔱搰㜹晣㐱㌷ㅤ㘱攳㌵戸捦戶㄰晤㍥㠷慥㘲㡡〰扦㠶ㄹ㘷昸㈰攸攵㈳㉢㡡㉦㘰㔹㘴〰攴㜳㠵ち㐰㜷慡㝥㙡㈳慡ㅥ戹㠷㍤㤱〴捦ㄸ㈴挷㤲昸ㅣㅡ㜲扢愲㘵㠳㈵戸㙣愱捥ㄲ挸ㅢ㐹て攴㜳㠲㘷〹㌵㤱捦愰㐳㘳㈲㌶㑡扢㑦攴搳ㅢ㑤㐴搰ち㔰ぢ㑤㡦㍦㤲㘸ㄱ愳㠶㙡挳㈱㜰〹㍣㠰㤱㐴㤹っ㔳㍥㔲攸ㄴ愲ㄸ挳㜷㠹㈲愴㥦挷㝦㥦㍢昲戳㘷㤹晥㝡㐴㈸㠹㠸慡搶㔵㔰㈲慡㔵㝣㉣扤ちㅦ愵摤㔷昱挴㐶慢ㄸ愱戰攴㑣㡣㄰㘰愸㑦㤴昱㐷慤慡㡥っ㌷㤴扦攲ㅣ〱㝥㕢㘶㌱㘲愲㐴昵扤㠸っ晡㜲攷㔵慢㑢挸㈴㝤㜵㙥㐴挶㔷㍥捡㔰攲㡤㐸㍡㜵ち㤱㔷戶㄰愹挷愲ㄳ扢㘳户㠵㤰挰㤲昸搹㙣㔷搹㕥攸㌱搴㉦㍥㤰㈰收昸昱攴ㄳ㉡㉤づ㍥㠱㌰㈲搳㤴㠴挴㡤ㄴ敦㑦ㅡ㝦敢㤹愶敦ㄴㄵ㐸愰㥥愸㌱〹㑥㌵㝥㉣㘹㝣〰㥦㘷愹㌶㌹㕥㈵㘰㝡㉥㘹㑣挲㔴㡤ㅦ㑤ㅡ晦攵挰摥㐶攳㠴づ愳㤱㜵ㄲ㐹㠶搱慢㡥〱愹㑦戵㠷搱㕣户愸㐸〷慣愸㤸㈲㔴挵㤰㙢㑡㤵づ攲㔶㠸㡦㡦愵攷㜰挹〹㜷㐱㈰㙤愳晦㌳攱〴㉥㍦捤㥡愱㠹㙦愱搷㄰㜵昶つ昵挴捥〵㙢摥㐷㐱扦㜵㈲挰攱慡扡慤㐸〴㜶㐱㍥摡摦㑤扣昳ㄹ㌶㘴㜳㍦㤲㘸㤹挶换㈴扤㘹ㄱㄵ㘱挹㡢昷㈶㤸捤㍤搲愴ㄹ攳㘱㈰〷㘲ㄲ㤰ㄹ攳ㄱ挰㈸㈲戳㠷〵㈳攴㝦挵摣敦㘵挵晢〸ㅥ〵㈸〹㌲㍢改愰昰ㄸ挰㜰昲㍦㔶㡣慤㈹挷㠹㈶ㅥ㑣㕥㤶㈶㈳攳〳散昰㐱㠰㍥昸㜱㐵㑣㠴㈵攳㐳㈸㐹扦㤴㠲㐳扤昴㜱㔶㝣㠴攰〹㠰㤲捥挹㙥㜹搷戸愶ㅥ㔵搸㐷搱㔵㍣㐲㠰㕦攳㘳㜱㠶て㍡昷攱㑤摤㡤㘶㥥㠹㤳㉦晣ㄱ昳㙣昹㤴晦㙥㝣㥡扦捥㐵昷攱㝦㈶搱㤵㠵㥦搷摥搸摢㔸㘴〲ㅡ攷敡㜷ㄵ㥢晤〲挶攱扡㥡愱ㄴ㡥㐸愵㔲搴ち㠲昸收㠲㠵㠷㌷昰㉤㠷㔵㠵㄰愴〱㔵攱挶ㄵ㐷㔰㘰㝣㠲㑤㠹㘳攲挹昸㈴㥦㠸㕡戵㠹㥦㡡㌳㝣㄰挴慢敡㝥㝦摣㍤㜹㈱㜱慤㉡散戶ㄷㄲ晦慡㘲㈵晤挲㈷㌹㤸㐲ㄶ㌲慤㕡㠹㐸㔳㌴昴㌹㘴㠶晡㠶㌹户晢昰慢㕤ㄲ㤵㜳搵㜳攷晥㌹㥣ㅦ扢㌶晦昶户づ㍥昹摣㑦㝦晦昱㕦扥敢昰㥦晥昵搴㔳扦晣挳挷㥦晤搷て㤶て晦昸改愷㝦㜴捦ㄷ㥦晤晤㙥敢㑢摡㌳晦㥣晢搲㐳㤳ㄷㅥ㝡挰㍡㜳敢戱㠷摥㜱晦扤㤳ぢ㔷㡣昷昵昵昷摦㌲晡㤳㙢㕥㍢昲挸〳摦ㄱ㍦晣昵搵慥㔰换挵ぢ㕡愷挱㘵慢㘹㝣ㅥㄹ㑣㠳㌳㝥㐹愷挱攵慡㡤㕡㡥㌷㙡ㅡ〵㐵㌸㌷㌸〱㔵㘱戶㔶っ晣〷㘵ㅢ戵慣
A28: Decisioneering:7.0.0.0

Sheet ERR & Sensitivity Analysis
B2: Tanzania: Lower Ruvu Plant Expansion Activity | F2: Last updated: 2/8/2016
B4: ERR and sensitivity analysis
B6: Change the "User Input" cells in the table below to see the effect on the compact's Economic Rate of Return (ERR) and net benefits (see chart below). To reset all values to the default MCC estimates, click the "Reset Parameters" button at right. Be sure to reset all summary parameters to their original values ("MCC Estimate" values) before changing specific parameters.
B8: Parameter type | C8: Description of key parameters | D8: Parameter values
D9: User Input | E9: MCC Estimate | F9: Plausible range | G9: Values used in ERR computation | I9: All summary parameters set to initial values?
B10: Summary | C10: Actual costs as a percentage of estimated costs | D10: 1 | E10: 1 | F10: 80 - 120% | G10: =D10 -> 1 | I10: =IF(D10=E10,IF(D11=E11,"Y","N"),"N") -> Y
B11: Summary | C11: Actual benefits as a percentage of estimated benefits | D11: 1 | E11: 1 | F11: 80 - 120% | G11: =D11 -> 1
I12: All specific parameters set to initial values?
B13: Specific | C13: Volume of water treated by households (liters) | D13: 3 | E13: 3 | F13: 0-6 | G13: =IF($I$10="Y",D13,E13) -> 3 | I13: =IF(D13=E13,IF(D14=E14,IF(D15=E15,IF(D19=E19,"Y","N"),"N"),"N"), "N") -> Y
B14: Specific | C14: Cost of energy used to boil water (USD/kWh) | D14: 0.2155 | E14: 0.2155 | F14: 0.16 - 0.24 | G14: =IF($I$10="Y",D14,E14) -> 0.2155
B15: Specific | C15: Value of commercial water (Tsh/m3) | D15: 1077 | E15: 1077 | F15: 500 - 1,500 | G15: =D15 -> 1077 | I15: More Info
B16: Specific | C16: Proportion of NRW that is technical loss (%) | D16: 0.8 | E16: 0.8 | F16: 60-90% | G16: =D16 -> 0.8 | I16: Activity Description
B17: Specific | C17: Anticipated reduction in cases of disease (% of counterfactual) | D17: 0.17 | E17: 0.17 | F17: 0-35% | G17: =D17 -> 0.17 | I17: User's Guide
B18: Specific | C18: Phase-in period of health benefits (years) | D18: 3 | E18: 3 | F18: 1 - 5 | G18: =IF($I$10="Y",D18,E18) -> 3
B19: Specific | C19: Total cost per unit of water delivered (US$/m3) | D19: 0.9 | E19: 0.9 | F19: 0.40 - 1.00 | G19: =IF($I$10="Y",D19,E19) -> 0.9
B21: =IF(I10="N",IF(I13="N","Reminder: Please reset all summary parameters to original values before changing specific parameters. Specific parameters will only be used in ERR computation when all summary parameters are set to initial values",0),0) -> 0
C22: User Generated Economic rate of return (ERR): | D22: =ERR!F48 -> 0.1491469298
C24: MCC Estimated ERRs: | E24: Original | F24: Closeout*
D25: ERR | E25: 0.282 | F25: =Sensitivity!E71 -> 0.1501710169
D26: Date | E26: 2007-08-24 | F26: 2016-02-08
C28: User Generated Economic rate of return (ERR): | D28: =ERR!F42*10^6 -> 171907907.7 | E28: 2014 US$, 10% discount rate
C29: Present Value (PV) of Benefits*: | D29: =Sensitivity!E185*10^6 -> 115187686.7 | E29: 2014 US$, 10% discount rate
C32: Present Value (PV) of MCC Costs: | D32: =ERR!F45*10^6 -> 82080289.75 | E32: 2014 US$, 10% discount rate
C34: * The Closeout estimates are expected values based on a 10,000-trial Monte Carlo simulation, while the User Generated numbers above show the base case scenario.

Sheet ERR
B1: Tanzania: Lower Ruvu Plant Expansion Activity | J1: Last updated: 2/8/2016
B2: Cost-Benefit Summary
E4: =IF('ERR & Sensitivity Analysis'!$I$10="N","Note: Current calculations are based on user input and are not the original MCC estimates.",IF('ERR & Sensitivity Analysis'!$I$13="N","Note: Current calculations are based on user input and are not the original MCC estimates.","")) -> 
E5: All figures in millions of US$ | F5: 2008 | G5: 2009 | H5: 2010 | I5: 2011 | J5: 2012 | K5: 2013 | L5: 2014 | M5: 2015 | N5: 2016 | O5: 2017 | P5: 2018 | Q5: 2019 | R5: 2020 | S5: 2021 | T5: 2022 | U5: 2023 | V5: 2024 | W5: 2025 | X5: 2026 | Y5: 2027 | Z5: 2028
E6: Year | F6: 0 | G6: 1 | H6: 2 | I6: 3 | J6: 4 | K6: 5 | L6: 6 | M6: 7 | N6: 8 | O6: 9 | P6: 10 | Q6: 11 | R6: 12 | S6: 13 | T6: 14 | U6: 15 | V6: 16 | W6: 17 | X6: 18 | Y6: 19 | Z6: 20
C7: Costs
E9: Disbursement rate | F9: =SUM(G9:K9) -> 1 | G9: 0 | H9: 0 | I9: 0.39 | J9: 0.32 | K9: =1-SUM(G9:J9) -> 0.29 | AC9: Present Value | AD9: % of Costs
C11: Investment costs | F11: =SUM(F12:F17) -> 56.84660024 | G11: 0 | H11: 4.47465179 | I11: 20.42505989 | J11: 16.7590235 | K11: 15.18786505 | L11: 0 | M11: 0 | N11: 0 | O11: 0 | P11: 0 | Q11: 0 | R11: 0 | S11: 0 | T11: 0 | U11: 0 | V11: 0 | W11: 0 | X11: 0 | Y11: 0 | Z11: 0 | AC11: =NPV(0.1,G11:Z11) -> 39.92081695 | AD11: =AC11/AC$24 -> 0.2811331236
D12: Capital costs | F12: ='ERR & Sensitivity Analysis'!G10*capex/10^6 -> 44.70326918 | G12: =$F12*G$9 -> 0 | H12: 0 | I12: 17.43427498 | J12: 14.30504614 | K12: 12.96394806 | AC12: 30.91875961 | AD12: 0.2177382161
D13: Supervision | F13: ='ERR & Sensitivity Analysis'!G10*cost_spvs/10^6 -> 4.22766524 | G13: 0 | H13: 0 | I13: 1.648789444 | J13: 1.352852877 | K13: 1.22602292 | AC13: 2.924040404 | AD13: 0.0205918785
D14: Feasibility studies | F14: ='ERR & Sensitivity Analysis'!G10*cost_feas/10^6 -> 4.47465179 | G14: 0 | H14: =F14 -> 4.47465179 | I14: 0 | J14: 0 | K14: 0 | AC14: 3.698059331 | AD14: 0.02604272783
D15: Technical assistance | F15: ='ERR & Sensitivity Analysis'!G10*cost_TA/10^6 -> 0.3235177 | G15: =$F15*G$9 -> 0 | H15: 0 | I15: 0.126171903 | J15: 0.103525664 | K15: 0.093820133 | AC15: 0.2237591608 | AD15: 0.001575772156
D16: Administrative costs | F16: ='ERR & Sensitivity Analysis'!G10*cost_admin/10^6 -> 1.755584696 | G16: 0 | H16: 0 | I16: 0.6846780315 | J16: 0.5617871028 | K16: 0.5091195619 | AC16: 1.214240081 | AD16: 0.008551005036
D17: M&E costs | F17: ='ERR & Sensitivity Analysis'!G10*cost_ME/10^6 -> 1.361911633 | G17: 0 | H17: 0 | I17: 0.5311455368 | J17: 0.4358117225 | K17: 0.3949543735 | AC17: 0.9419583658 | AD17: 0.006633524008
AD18: 0
C19: Increased water production and delivery costs | G19: =Commercial!G36/10^6 -> 0 | H19: =Commercial!H36/10^6 -> 0 | I19: =Commercial!I36/10^6 -> 0 | J19: =Commercial!J36/10^6 -> 0 | K19: =Commercial!K36/10^6 -> 0 | L19: =Commercial!L36/10^6 -> 0 | M19: =Commercial!M36/10^6 -> 0 | N19: =Commercial!N36/10^6 -> 16.43814 | O19: =Commercial!O36/10^6 -> 16.43814 | P19: =Commercial!P36/10^6 -> 16.43814 | Q19: =Commercial!Q36/10^6 -> 16.43814 | R19: =Commercial!R36/10^6 -> 16.43814 | S19: =Commercial!S36/10^6 -> 16.43814 | T19: =Commercial!T36/10^6 -> 16.43814 | U19: =Commercial!U36/10^6 -> 16.43814 | V19: =Commercial!V36/10^6 -> 16.43814 | W19: =Commercial!W36/10^6 -> 16.43814 | X19: =Commercial!X36/10^6 -> 16.43814 | Y19: =Commercial!Y36/10^6 -> 16.43814 | Z19: =Commercial!Z36/10^6 -> 16.43814 | AC19: =NPV(0.1,G19:Z19) -> 59.91940222 | AD19: 0.4219685366
C21: New transmission main (not financed by MCC) | F21: ='ERR & Sensitivity Analysis'!G10*Assumptions!N34*10^3/Tsh_USD -> 74.46243405 | G21: 0 | H21: 0 | I21: 0 | J21: 0 | K21: =F21/3 -> 24.82081135 | L21: =F21/3 -> 24.82081135 | M21: =F21/3 -> 24.82081135 | N21: 0 | O21: 0 | P21: 0 | Q21: 0 | R21: 0 | S21: 0 | T21: 0 | U21: 0 | V21: 0 | W21: 0 | X21: 0 | Y21: 0 | Z21: 0 | AC21: =NPV(0.1,G21:Z21) -> 42.1594728 | AD21: =AC21/AC$24 -> 0.2968983398
D22: Total investment costs | F22: =F11+F21 -> 131.3090343 | G22: =G11+G21 -> 0 | H22: 4.47465179 | I22: 20.42505989 | J22: 16.7590235 | K22: 40.0086764 | L22: 24.82081135 | M22: 24.82081135 | N22: 0 | O22: 0 | P22: 0 | Q22: 0 | R22: 0 | S22: 0 | T22: 0 | U22: 0 | V22: 0 | W22: 0 | X22: 0 | Y22: 0 | Z22: 0
C24: Total costs | G24: =SUM(G11,G19,G21) -> 0 | H24: 4.47465179 | I24: 20.42505989 | J24: 16.7590235 | K24: 40.0086764 | L24: 24.82081135 | M24: 24.82081135 | N24: 16.43814 | O24: 16.43814 | P24: 16.43814 | Q24: 16.43814 | R24: 16.43814 | S24: 16.43814 | T24: 16.43814 | U24: 16.43814 | V24: 16.43814 | W24: 16.43814 | X24: 16.43814 | Y24: 16.43814 | Z24: 16.43814 | AC24: =NPV(0.1,G24:Z24) -> 141.999692 | AD24: =AC24/AC$24 -> 1
C26: Benefits | AC26: Present Value | AD26: % of Benefits
C28: Reduced household expenditures on water treatment | G28: ='ERR & Sensitivity Analysis'!$G$11*Savings!G61/10^6 -> 0 | H28: ='ERR & Sensitivity Analysis'!$G$11*Savings!H61/10^6 -> 0 | I28: ='ERR & Sensitivity Analysis'!$G$11*Savings!I61/10^6 -> 0 | J28: ='ERR & Sensitivity Analysis'!$G$11*Savings!J61/10^6 -> 0 | K28: ='ERR & Sensitivity Analysis'!$G$11*Savings!K61/10^6 -> 0 | L28: ='ERR & Sensitivity Analysis'!$G$11*Savings!L61/10^6 -> 16.05629295 | M28: ='ERR & Sensitivity Analysis'!$G$11*Savings!M61/10^6 -> 16.95544535 | N28: ='ERR & Sensitivity Analysis'!$G$11*Savings!N61/10^6 -> 17.90495029 | O28: ='ERR & Sensitivity Analysis'!$G$11*Savings!O61/10^6 -> 18.90762751 | P28: ='ERR & Sensitivity Analysis'!$G$11*Savings!P61/10^6 -> 19.96645465 | Q28: ='ERR & Sensitivity Analysis'!$G$11*Savings!Q61/10^6 -> 21.08457611 | R28: ='ERR & Sensitivity Analysis'!$G$11*Savings!R61/10^6 -> 22.26531237 | S28: ='ERR & Sensitivity Analysis'!$G$11*Savings!S61/10^6 -> 23.51216986 | T28: ='ERR & Sensitivity Analysis'!$G$11*Savings!T61/10^6 -> 24.82885137 | U28: ='ERR & Sensitivity Analysis'!$G$11*Savings!U61/10^6 -> 26.21926705 | V28: ='ERR & Sensitivity Analysis'!$G$11*Savings!V61/10^6 -> 27.687546 | W28: ='ERR & Sensitivity Analysis'!$G$11*Savings!W61/10^6 -> 29.23804858 | X28: ='ERR & Sensitivity Analysis'!$G$11*Savings!X61/10^6 -> 31.64736518 | Y28: ='ERR & Sensitivity Analysis'!$G$11*Savings!Y61/10^6 -> 34.78379665 | Z28: ='ERR & Sensitivity Analysis'!$G$11*Savings!Z61/10^6 -> 38.09586828 | AC28: =NPV(0.1,G28:Z28) -> 104.7959541 | AD28: =AC28/$AC$37 -> 0.6096051981
C30: Improved health outcomes | G30: =SUM(G31:G33) -> 0 | H30: =SUM(H31:H33) -> 0 | I30: 0 | J30: 0 | K30: 0 | L30: 1.34085787 | M30: 2.831891821 | N30: 4.485716644 | O30: 4.736916776 | P30: 5.002184116 | Q30: 5.282306426 | R30: 5.578115586 | S30: 5.890490059 | T30: 6.220357502 | U30: 6.568697522 | V30: 6.936544583 | W30: 7.32499108 | X30: 7.73519058 | Y30: 8.168361253 | Z30: 8.625789483 | AC30: =NPV(0.1,G30:Z30) -> 23.75353815 | AD30: =AC30/$AC$37 -> 0.1381759482
D31: Treatment cost savings | G31: ='ERR & Sensitivity Analysis'!$G$11*Health!G43/10^6 -> 0 | H31: ='ERR & Sensitivity Analysis'!$G$11*Health!H43/10^6 -> 0 | I31: ='ERR & Sensitivity Analysis'!$G$11*Health!I43/10^6 -> 0 | J31: ='ERR & Sensitivity Analysis'!$G$11*Health!J43/10^6 -> 0 | K31: ='ERR & Sensitivity Analysis'!$G$11*Health!K43/10^6 -> 0 | L31: ='ERR & Sensitivity Analysis'!$G$11*Health!L43/10^6 -> 0.0009357350995 | M31: ='ERR & Sensitivity Analysis'!$G$11*Health!M43/10^6 -> 0.00197627253 | N31: ='ERR & Sensitivity Analysis'!$G$11*Health!N43/10^6 -> 0.003130415688 | O31: ='ERR & Sensitivity Analysis'!$G$11*Health!O43/10^6 -> 0.003305718966 | P31: ='ERR & Sensitivity Analysis'!$G$11*Health!P43/10^6 -> 0.003490839229 | Q31: ='ERR & Sensitivity Analysis'!$G$11*Health!Q43/10^6 -> 0.003686326225 | R31: ='ERR & Sensitivity Analysis'!$G$11*Health!R43/10^6 -> 0.003892760494 | S31: ='ERR & Sensitivity Analysis'!$G$11*Health!S43/10^6 -> 0.004110755082 | T31: ='ERR & Sensitivity Analysis'!$G$11*Health!T43/10^6 -> 0.004340957366 | U31: ='ERR & Sensitivity Analysis'!$G$11*Health!U43/10^6 -> 0.004584050979 | V31: ='ERR & Sensitivity Analysis'!$G$11*Health!V43/10^6 -> 0.004840757833 | W31: ='ERR & Sensitivity Analysis'!$G$11*Health!W43/10^6 -> 0.005111840272 | X31: ='ERR & Sensitivity Analysis'!$G$11*Health!X43/10^6 -> 0.005398103327 | Y31: ='ERR & Sensitivity Analysis'!$G$11*Health!Y43/10^6 -> 0.005700397114 | Z31: ='ERR & Sensitivity Analysis'!$G$11*Health!Z43/10^6 -> 0.006019619352 | AC31: 0.01657671546 | AD31: 9.642788216e-05
D32: Reduced opportunity cost from fewer sick days | G32: ='ERR & Sensitivity Analysis'!$G$11*Health!G48/10^6 -> 0 | H32: ='ERR & Sensitivity Analysis'!$G$11*Health!H48/10^6 -> 0 | I32: ='ERR & Sensitivity Analysis'!$G$11*Health!I48/10^6 -> 0 | J32: ='ERR & Sensitivity Analysis'!$G$11*Health!J48/10^6 -> 0 | K32: ='ERR & Sensitivity Analysis'!$G$11*Health!K48/10^6 -> 0 | L32: ='ERR & Sensitivity Analysis'!$G$11*Health!L48/10^6 -> 0.004939504723 | M32: ='ERR & Sensitivity Analysis'!$G$11*Health!M48/10^6 -> 0.01043223397 | N32: ='ERR & Sensitivity Analysis'!$G$11*Health!N48/10^6 -> 0.01652465862 | O32: ='ERR & Sensitivity Analysis'!$G$11*Health!O48/10^6 -> 0.0174500395 | P32: ='ERR & Sensitivity Analysis'!$G$11*Health!P48/10^6 -> 0.01842724171 | Q32: ='ERR & Sensitivity Analysis'!$G$11*Health!Q48/10^6 -> 0.01945916725 | R32: ='ERR & Sensitivity Analysis'!$G$11*Health!R48/10^6 -> 0.02054888061 | S32: ='ERR & Sensitivity Analysis'!$G$11*Health!S48/10^6 -> 0.02169961793 | T32: ='ERR & Sensitivity Analysis'!$G$11*Health!T48/10^6 -> 0.02291479653 | U32: ='ERR & Sensitivity Analysis'!$G$11*Health!U48/10^6 -> 0.02419802514 | V32: ='ERR & Sensitivity Analysis'!$G$11*Health!V48/10^6 -> 0.02555311454 | W32: ='ERR & Sensitivity Analysis'!$G$11*Health!W48/10^6 -> 0.02698408896 | X32: ='ERR & Sensitivity Analysis'!$G$11*Health!X48/10^6 -> 0.02849519794 | Y32: ='ERR & Sensitivity Analysis'!$G$11*Health!Y48/10^6 -> 0.03009092902 | Z32: ='ERR & Sensitivity Analysis'!$G$11*Health!Z48/10^6 -> 0.03177602105 | AC32: 0.08750421392 | AD32: 0.0005090179684
D33: Lifetime income gains due to decreased child stunting | G33: ='ERR & Sensitivity Analysis'!$G$11*Health!G53/10^6 -> 0 | H33: ='ERR & Sensitivity Analysis'!$G$11*Health!H53/10^6 -> 0 | I33: ='ERR & Sensitivity Analysis'!$G$11*Health!I53/10^6 -> 0 | J33: ='ERR & Sensitivity Analysis'!$G$11*Health!J53/10^6 -> 0 | K33: ='ERR & Sensitivity Analysis'!$G$11*Health!K53/10^6 -> 0 | L33: ='ERR & Sensitivity Analysis'!$G$11*Health!L53/10^6 -> 1.33498263 | M33: ='ERR & Sensitivity Analysis'!$G$11*Health!M53/10^6 -> 2.819483314 | N33: ='ERR & Sensitivity Analysis'!$G$11*Health!N53/10^6 -> 4.46606157 | O33: ='ERR & Sensitivity Analysis'!$G$11*Health!O53/10^6 -> 4.716161018 | P33: ='ERR & Sensitivity Analysis'!$G$11*Health!P53/10^6 -> 4.980266035 | Q33: ='ERR & Sensitivity Analysis'!$G$11*Health!Q53/10^6 -> 5.259160933 | R33: ='ERR & Sensitivity Analysis'!$G$11*Health!R53/10^6 -> 5.553673945 | S33: ='ERR & Sensitivity Analysis'!$G$11*Health!S53/10^6 -> 5.864679686 | T33: ='ERR & Sensitivity Analysis'!$G$11*Health!T53/10^6 -> 6.193101748 | U33: ='ERR & Sensitivity Analysis'!$G$11*Health!U53/10^6 -> 6.539915446 | V33: ='ERR & Sensitivity Analysis'!$G$11*Health!V53/10^6 -> 6.906150711 | W33: ='ERR & Sensitivity Analysis'!$G$11*Health!W53/10^6 -> 7.292895151 | X33: ='ERR & Sensitivity Analysis'!$G$11*Health!X53/10^6 -> 7.701297279 | Y33: ='ERR & Sensitivity Analysis'!$G$11*Health!Y53/10^6 -> 8.132569927 | Z33: ='ERR & Sensitivity Analysis'!$G$11*Health!Z53/10^6 -> 8.587993843 | AC33: 23.64945722 | AD33: 0.1375705024
C35: Increased water available to enterprises | G35: ='ERR & Sensitivity Analysis'!$G$11*Commercial!G32/10^6 -> 0 | H35: ='ERR & Sensitivity Analysis'!$G$11*Commercial!H32/10^6 -> 0 | I35: ='ERR & Sensitivity Analysis'!$G$11*Commercial!I32/10^6 -> 0 | J35: ='ERR & Sensitivity Analysis'!$G$11*Commercial!J32/10^6 -> 0 | K35: ='ERR & Sensitivity Analysis'!$G$11*Commercial!K32/10^6 -> 0 | L35: ='ERR & Sensitivity Analysis'!$G$11*Commercial!L32/10^6 -> 0 | M35: ='ERR & Sensitivity Analysis'!$G$11*Commercial!M32/10^6 -> 0 | N35: ='ERR & Sensitivity Analysis'!$G$11*Commercial!N32/10^6 -> 12.18016978 | O35: ='ERR & Sensitivity Analysis'!$G$11*Commercial!O32/10^6 -> 12.18016978 | P35: ='ERR & Sensitivity Analysis'!$G$11*Commercial!P32/10^6 -> 12.18016978 | Q35: ='ERR & Sensitivity Analysis'!$G$11*Commercial!Q32/10^6 -> 12.18016978 | R35: ='ERR & Sensitivity Analysis'!$G$11*Commercial!R32/10^6 -> 12.18016978 | S35: ='ERR & Sensitivity Analysis'!$G$11*Commercial!S32/10^6 -> 12.18016978 | T35: ='ERR & Sensitivity Analysis'!$G$11*Commercial!T32/10^6 -> 12.18016978 | U35: ='ERR & Sensitivity Analysis'!$G$11*Commercial!U32/10^6 -> 12.18016978 | V35: ='ERR & Sensitivity Analysis'!$G$11*Commercial!V32/10^6 -> 12.18016978 | W35: ='ERR & Sensitivity Analysis'!$G$11*Commercial!W32/10^6 -> 12.18016978 | X35: ='ERR & Sensitivity Analysis'!$G$11*Commercial!X32/10^6 -> 11.4081839 | Y35: ='ERR & Sensitivity Analysis'!$G$11*Commercial!Y32/10^6 -> 10.00077368 | Z35: ='ERR & Sensitivity Analysis'!$G$11*Commercial!Z32/10^6 -> 8.514548477 | AC35: 43.35841542 | AD35: 0.2522188537
C37: Total benefits | G37: =SUM(G28,G30,G35) -> 0 | H37: =SUM(H28,H30,H35) -> 0 | I37: 0 | J37: 0 | K37: 0 | L37: 17.39715081 | M37: 19.78733717 | N37: 34.57083672 | O37: 35.82471407 | P37: 37.14880854 | Q37: 38.54705232 | R37: 40.02359774 | S37: 41.5828297 | T37: 43.22937866 | U37: 44.96813436 | V37: 46.80426037 | W37: 48.74320944 | X37: 50.79073967 | Y37: 52.95293158 | Z37: 55.23620624 | AC37: 171.9079077 | AD37: 1
D38: Net local benefits | G38: =G37-G19 -> 0 | H38: 0 | I38: 0 | J38: 0 | K38: 0 | L38: 17.39715081 | M38: 19.78733717 | N38: 18.13269672 | O38: 19.38657407 | P38: 20.71066854 | Q38: 22.10891232 | R38: 23.58545774 | S38: 25.1446897 | T38: 26.79123866 | U38: 28.52999436 | V38: 30.36612037 | W38: 32.30506944 | X38: 34.35259967 | Y38: 36.51479158 | Z38: 38.79806624 | AC38: 111.9885055
C40: Net benefits | G40: =G37-G24 -> 0 | H40: -4.47465179 | I40: -20.42505989 | J40: -16.7590235 | K40: -40.0086764 | L40: -7.423660535 | M40: -5.033474179 | N40: 18.13269672 | O40: 19.38657407 | P40: 20.71066854 | Q40: 22.10891232 | R40: 23.58545774 | S40: 25.1446897 | T40: 26.79123866 | U40: 28.52999436 | V40: 30.36612037 | W40: 32.30506944 | X40: 34.35259967 | Y40: 36.51479158 | Z40: 38.79806624
C42: Present value of benefits | F42: =NPV(0.1,G37:Z37) -> 171.9079077
D43: Present value of local benefits | F43: =NPV(0.1,G38:Z38) -> 111.9885055
C44: Present value of costs | F44: =NPV(0.1,G24:Z24) -> 141.999692
D45: Present value of investment costs | F45: =NPV(0.1,G22:Z22) -> 82.08028975
C46: Total Net Present Value | F46: =NPV(0.1,G40:Z40) -> 29.90821572
E48: ERR (20 years): | F48: =IRR(G40:Z40) -> 0.1491469298
C52: Note
C53: To simplify review, the calculations on this worksheet use formula names that reference calculations elsewhere in this workbook. To see a list of these formula names, click on Formulas --> Name Manager, or use the drop down menu in the upper left corner of the formula bar.

Sheet Assumptions
B1: Tanzania: Lower Ruvu Plant Expansion Activity | J1: Last updated: 2/8/2016
B2: Consumer Profile & Assumptions
B4: =IF('ERR & Sensitivity Analysis'!$I$10="N","Note: Current calculations are based on user input and are not the original MCC estimates.",IF('ERR & Sensitivity Analysis'!$I$13="N","Note: Current calculations are based on user input and are not the original MCC estimates.","")) -> 
B6: Without Project | L6: Household Treatment Costs
K7: =A75 -> 8 | L7: Volume treated (liters/capita/day) | M7: ='ERR & Sensitivity Analysis'!G13 -> 3
A8: =A68 -> 1 | B8: Primary drinking water source | C8: % of HH | D8: Liters / capita / day (lpcpd) | E8: Cost of water (Tsh/liter) | F8: % of water treated | G8: Treatment cost (Tsh/liter) | H8: Total cost (Tsh/liter) | L8: Cost of boiling water | M8: Column1
B9: Own tap | C9: 0.13 | D9: 114.5 | E9: =M27/1000 -> 1.077 | F9: =M7/Table4[[#This Row],[Liters / capita / day (lpcpd)]] -> 0.02620087336 | G9: =SUMPRODUCT(C16:G16,C$21:G$21) -> 22.78857094 | H9: =Table4[[#This Row],[Cost of water (Tsh/liter)]]+(Table4[[#This Row],[% of water treated]]*Table4[[#This Row],[Treatment cost (Tsh/liter)]]) -> 1.674080461 | K9: =A77 -> 9 | L9: Average annual temperature in Dar es Salaam (Co) | M9: 26.1
B10: Other piped | C10: 0.39 | D10: 5 | E10: =M27/1000 -> 1.077 | F10: =M7/Table4[[#This Row],[Liters / capita / day (lpcpd)]] -> 0.6 | G10: =SUMPRODUCT(C17:G17,C$21:G$21) -> 11.4418652 | H10: =Table4[[#This Row],[Cost of water (Tsh/liter)]]+(Table4[[#This Row],[% of water treated]]*Table4[[#This Row],[Treatment cost (Tsh/liter)]]) -> 7.942119121 | K10: =A79 -> 10 | L10: Energy required to boil 1 liter water in Dar es Salaam (kcal) | M10: =100-M9 -> 73.9
B11: Vendors | C11: =0.19+0.05 -> 0.24 | D11: =(10*19/24)+(50.5*5/24) -> 18.4375 | E11: =1200/1000 -> 1.2 | F11: 0.11 | G11: =SUMPRODUCT(C18:G18,C$21:G$21) -> 14.11412086 | H11: =Table4[[#This Row],[Cost of water (Tsh/liter)]]+(Table4[[#This Row],[% of water treated]]*Table4[[#This Row],[Treatment cost (Tsh/liter)]]) -> 2.752553294 | K11: =A81 -> 11 | L11: Energy required to boil 1 liter water in Dar es Salaam (kWh) | M11: =M10*0.001163 -> 0.0859457
A12: =A69 -> 2 | B12: Non‐Tap | C12: 0.24 | D12: 4 | E12: 0 | F12: =IF(D12>M$7,$M$7/D12,1) -> 0.75 | G12: =SUMPRODUCT(C19:G19,C$21:G$21) -> 8.973569051 | H12: =Table4[[#This Row],[Cost of water (Tsh/liter)]]+(Table4[[#This Row],[% of water treated]]*Table4[[#This Row],[Treatment cost (Tsh/liter)]]) -> 6.730176788 | K12: =A83 -> 12 | L12: Cost of energy (Tsh/kWh) | M12: ='ERR & Sensitivity Analysis'!G14*Tsh_USD -> 348.0325
A13: =A70 -> 3 | B13: Total | C13: =SUM(C9:C12) -> 1 | D13: =SUMPRODUCT(C9:C12,D9:D12) -> 22.22 | L13: Treatment cost (Tsh/liter) | M13: =M11*M12 -> 29.91189684
A15: =A71 -> 4 | B15: Primary drinking water source | C15: Boil | D15: Disinfect | E15: Filter | F15: Let settle | G15: None | H15: Total | I15: % Treating | L15: Cost of disinfecting water | M15: Column1
B16: Own tap | C16: 0.76 | D16: 0.01 | E16: 0.01 | F16: 0.02 | G16: 0.2 | H16: =SUM(Table5[[#This Row],[Boil]:[None]]) -> 1 | I16: =SUM(Table5[[#This Row],[Boil]:[Let settle]]) -> 0.8 | K16: =A84 -> 13 | L16: Price of bleach (Tsh/liter) | M16: 10000
B17: Other piped | C17: 0.38 | D17: 0.02 | E17: 0.01 | F17: 0.07 | G17: 0.52 | H17: =SUM(Table5[[#This Row],[Boil]:[None]]) -> 1 | I17: =SUM(Table5[[#This Row],[Boil]:[Let settle]]) -> 0.48 | K17: =A85 -> 14 | L17: Dose (mL/liter) | M17: =0.75/3.785 -> 0.1981505945
B18: Vendors | C18: 0.47 | D18: 0.01 | E18: 0.01 | F18: 0.05 | G18: 0.46 | H18: =SUM(Table5[[#This Row],[Boil]:[None]]) -> 1 | I18: =SUM(Table5[[#This Row],[Boil]:[Let settle]]) -> 0.54 | L18: Treatment cost (Tsh/liter) | M18: =M16/1000*M17 -> 1.981505945
B19: Non‐Tap | C19: 0.3 | D19: 0 | E19: 0 | F19: 0.03 | G19: 0.67 | H19: =SUM(Table5[[#This Row],[Boil]:[None]]) -> 1 | I19: =SUM(Table5[[#This Row],[Boil]:[Let settle]]) -> 0.33
B20: Total | C20: 0.39 | D20: 0.04 | E20: 0.06 | F20: 0.16 | G20: 0.35 | H20: =SUM(Table5[[#This Row],[Boil]:[None]]) -> 1 | I20: =SUM(Table5[[#This Row],[Boil]:[Let settle]]) -> 0.65 | L20: Cost of filtering water | M20: Column1
B21: Treatment cost (Tsh/liter) | C21: =M13 -> 29.91189684 | D21: =M18 -> 1.981505945 | E21: =M23 -> 3.571428571 | F21: 0 | G21: 0 | K21: =A87 -> 15 | L21: Price of filter (Tsh) | M21: 25000
L22: Capacity of filter (liters) | M22: 7000
B23: Clean without project? | L23: Treatment cost (Tsh/liter) | M23: =M21/M22 -> 3.571428571
A24: 3 | B24: Primary drinking water source | C24: Boil | D24: Disinfect | E24: Filter | F24: Let settle | G24: None | H24: Clean % | I24: Unclean %
B25: Own tap | C25: yes | D25: yes | E25: no | F25: no | G25: no | H25: =SUMIF(Table6[[#This Row],[Boil]:[None]],"yes",C16:G16) -> 0.77 | I25: =SUMIF(Table6[[#This Row],[Boil]:[None]],"no",C16:G16) -> 0.23 | L25: DAWASCO Service
B26: Other piped | C26: yes | D26: yes | E26: no | F26: no | G26: no | H26: =SUMIF(Table6[[#This Row],[Boil]:[None]],"yes",C17:G17) -> 0.4 | I26: =SUMIF(Table6[[#This Row],[Boil]:[None]],"no",C17:G17) -> 0.6 | L26: Column1 | M26: w/o Project | N26: w/Project
B27: Vendors | C27: yes | D27: yes | E27: no | F27: no | G27: no | H27: =SUMIF(Table6[[#This Row],[Boil]:[None]],"yes",C18:G18) -> 0.48 | I27: =SUMIF(Table6[[#This Row],[Boil]:[None]],"no",C18:G18) -> 0.52 | K27: =A89 -> 16 | L27: DAWASCO domestic tariff (Tsh/m3) | M27: 1077 | N27: -
B28: Non‐Tap | C28: yes | D28: yes | E28: no | F28: no | G28: no | H28: =SUMIF(Table6[[#This Row],[Boil]:[None]],"yes",C19:G19) -> 0.3 | I28: =SUMIF(Table6[[#This Row],[Boil]:[None]],"no",C19:G19) -> 0.7 | K28: =K27 -> 16 | L28: DAWASCO commercial tariff (Tsh/m3) | M28: ='ERR & Sensitivity Analysis'!G15 -> 1077 | N28: -
B29: Total | H29: =SUMPRODUCT(C9:C12,Table6[Clean %]) -> 0.4433 | I29: =SUMPRODUCT(C9:C12,Table6[Unclean %]) -> 0.5567 | K29: =A91 -> 17 | L29: Production capacity (m3/day) | M29: 180000 | N29: 270000
K30: =A91 -> 17 | L30: Non-revenue water (% of production) | M30: 0 | N30: 0.555
K31: =A92 -> 18 | L31: Proportion of NRW that is technical loss (%) | M31: 0 | N31: ='ERR & Sensitivity Analysis'!G16 -> 0.8
K32: =A93 -> 19 | L32: Total cost per unit delivered (US$/m3) | M32: 0 | N32: ='ERR & Sensitivity Analysis'!G19 -> 0.9
K33: =A94 -> 20 | L33: Year in which increased capacity is achieved | M33: 0 | N33: 2015
B34: Column1 | C34: DAWASCO | D34: Other | E34: Total | K34: =A95 -> 21 | L34: Total cost of new Lower Ruvu transmission main (Billions Tsh) | M34: - | N34: 120.256831
B35: Avg cost (Tsh/liter) of clean water, without project | C35: =(C9/SUM(C9:C10)*H9)+(C10/SUM(C9:C10)*H10) -> 6.375109456 | D35: =(C11/SUM(C11:C12)*H11)+(C12/SUM(C11:C12)*H12) -> 4.741365041 | E35: =SUMPRODUCT(C9:C12,H9:H12) -> 5.590912137
B36: Avg volume of water, without project | C36: =(C9/SUM(C9:C10)*D9)+(C10/SUM(C9:C10)*D10) -> 32.375 | D36: =(C12/SUM(C12:C13)*H12)+(C13/SUM(C12:C13)*H13) -> 1.302614862 | E36: =lpcpd_wop -> 22.22 | L36: Health | M36: w/o Project | N36: w/Project
K37: =A96 -> 22 | L37: Prevalence of diarrheal disease, age < 5 | M37: 0.07 | N37: =M37*(1-$N$40) -> 0.0581
B38: With Project | K38: =K37 -> 22 | L38: Prevalence of diarrheal disease, age 5-18 | M38: 0.02 | N38: =M38*(1-$N$40) -> 0.0166
K39: =A97 -> 23 | L39: Prevalence of diarrheal disease, age> 18 | M39: 0.02 | N39: =M39*(1-$N$40) -> 0.0166
A40: =A73 -> 6 | B40: Primary drinking water source | C40: % of HH | D40: Liters / capita / day (lpcpd) | E40: Cost of water (Tsh/liter) | F40: % of water treated | G40: Treatment cost (Tsh/liter) | H40: Total cost (Tsh/liter) | K40: 24 | L40: Anticipated % reduction in cases of disease | M40: - | N40: ='ERR & Sensitivity Analysis'!G17 -> 0.17
A41: % | B41: Own tap | C41: 0.13 | D41: =D9 -> 114.5 | E41: =E9 -> 1.077 | F41: 0 | G41: =SUMPRODUCT(C49:G49,C$21:G$21) -> 0 | H41: =Table7[[#This Row],[Cost of water (Tsh/liter)]]+(Table7[[#This Row],[% of water treated]]*Table7[[#This Row],[Treatment cost (Tsh/liter)]]) -> 1.077 | K41: 25 | L41: Diarrheal treatment costs (Tsh) | M41: 589 | N41: -
B42: Other piped | C42: 0.39 | D42: 5 | E42: =E10 -> 1.077 | F42: 0 | G42: =SUMPRODUCT(C50:G50,C$21:G$21) -> 0 | H42: =Table7[[#This Row],[Cost of water (Tsh/liter)]]+(Table7[[#This Row],[% of water treated]]*Table7[[#This Row],[Treatment cost (Tsh/liter)]]) -> 1.077 | K42: 26 | L42: Average work days missed per case of disease | M42: 0.138 | N42: -
B43: Vendors | C43: =0.19+0.05 -> 0.24 | D43: =D11 -> 18.4375 | E43: =E11 -> 1.2 | F43: 0.11 | G43: =SUMPRODUCT(C51:G51,C$21:G$21) -> 14.11412086 | H43: =Table7[[#This Row],[Cost of water (Tsh/liter)]]+(Table7[[#This Row],[% of water treated]]*Table7[[#This Row],[Treatment cost (Tsh/liter)]]) -> 2.752553294 | K43: 27 | L43: Average daily wage, Dar es Salaam Region (Tsh) | M43: 26485.74 | N43: -
B44: Non‐Tap | C44: 0.26 | D44: =D12 -> 4 | E44: =E12 -> 0 | F44: 0.11 | G44: =SUMPRODUCT(C52:G52,C$21:G$21) -> 8.973569051 | H44: =Table7[[#This Row],[Cost of water (Tsh/liter)]]+(Table7[[#This Row],[% of water treated]]*Table7[[#This Row],[Treatment cost (Tsh/liter)]]) -> 0.9870925956 | K44: 28 | L44: Probability of employment | M44: 0.850657199 | N44: -
B45: Total | C45: =SUM(C41:C44) -> 1.02 | D45: =SUMPRODUCT(C41:C44,D41:D44) -> 22.3
K46: =A103 -> 29 | L46: Percentage of stunted children in Tanzania, low height for age | M46: 0.425 | N46: -
L47: Odds of stunting for children, age <5 | M47: =M46/(1-M46) -> 0.7391304348 | N47: -
A48: =A74 -> 7 | B48: Primary drinking water source | C48: Boil | D48: Disinfect | E48: Filter | F48: Let settle | G48: None | H48: Total | K48: =A104 -> 30 | L48: Odds ratio of stunting for children age<5 with diarrhea | M48: 2.289 | N48: -
B49: Own tap | C49: 0 | D49: 0 | E49: 0 | F49: 0 | G49: 1 | H49: 1 | L49: Odds of stunting for children age<5 with diarrhea | M49: =M47*M48 -> 1.691869565 | N49: -
B50: Other piped | C50: 0 | D50: 0 | E50: 0 | F50: 0 | G50: 1 | H50: 1 | L50: Probability of stunting for children age<5 with diarrhea | M50: =M49/(1+M49) -> 0.6285109751 | N50: -
B51: Vendors | C51: =C18 -> 0.47 | D51: =D18 -> 0.01 | E51: 0.01 | F51: 0.05 | G51: =G18 -> 0.46 | H51: 1 | K51: =A105 -> 31 | L51: Return to an additional year of schooling, Tanzania | M51: 0.166 | N51: -
B52: Non‐Tap | C52: =C19 -> 0.3 | D52: =D19 -> 0 | E52: 0 | F52: 0.03 | G52: =G19 -> 0.67 | H52: 1 | K52: =A106 -> 32 | L52: Fewer years of schooling due to stunting | M52: 0.85 | N52: -
B53: Total | C53: =C20 -> 0.39 | D53: 0.04 | E53: 0.06 | F53: 0.16 | G53: =G20 -> 0.35 | H53: 1
K54: =A107 -> 33 | L54: Phase-in period of health benefits (years) | M54: - | N54: ='ERR & Sensitivity Analysis'!G18 -> 3
B55: Clean with project? | K55: =Assumptions!A108 -> 34 | L55: US-Tanzania Exchange rate | M55: 1615 | N55: -
B56: Primary drinking water source | C56: Boil | D56: Disinfect | E56: Filter | F56: Let settle | G56: None | H56: Clean % | I56: Unclean %
B57: Own tap | C57: yes | D57: yes | E57: yes | F57: yes | G57: yes | H57: =SUMIF(Table9[[#This Row],[Boil]:[None]],"yes",C49:G49) -> 1 | I57: =SUMIF(Table9[[#This Row],[Boil]:[None]],"no",C49:G49) -> 0
B58: Other piped | C58: yes | D58: yes | E58: yes | F58: yes | G58: yes | H58: =SUMIF(Table9[[#This Row],[Boil]:[None]],"yes",C50:G50) -> 1 | I58: =SUMIF(Table9[[#This Row],[Boil]:[None]],"no",C50:G50) -> 0
B59: Vendors | C59: yes | D59: yes | E59: no | F59: no | G59: no | H59: =SUMIF(Table9[[#This Row],[Boil]:[None]],"yes",C51:G51) -> 0.48 | I59: =SUMIF(Table9[[#This Row],[Boil]:[None]],"no",C51:G51) -> 0.52
B60: Non‐Tap | C60: yes | D60: yes | E60: no | F60: no | G60: no | H60: =SUMIF(Table9[[#This Row],[Boil]:[None]],"yes",C52:G52) -> 0.3 | I60: =SUMIF(Table9[[#This Row],[Boil]:[None]],"no",C52:G52) -> 0.7
B61: Total | H61: =SUMPRODUCT(C41:C44,Table9[Clean %]) -> 0.7132 | I61: =SUMPRODUCT(C41:C44,Table9[Unclean %]) -> 0.3068
B63: Column1 | C63: DAWASCO | D63: Other | E63: Total
B64: Avg cost (Tsh/liter) of clean water, with project | C64: =(C41/SUM(C41:C42)*H41)+(C42/SUM(C41:C42)*H42) -> 1.077 | D64: =(C43/SUM(C43:C44)*H43)+(C44/SUM(C43:C44)*H44) -> 1.834513731 | E64: =SUMPRODUCT(C41:C44,H41:H44) -> 1.477296865
B67: Notes
A68: 1 | B68: Impact Evaluation Baseline Report (2014), Table 36. Bottled water, which represents <1% of responses, is combined with water from vendors in this analysis.
A69: 2 | B69: According to the Impact Evaluation Baseline Report (2014), "non-tap" includes boreholes, unprotected and protected wells/springs and surface water. For the purposes of this analysis, surface water is assumed.
A70: 3 | B70: Per capita consumption estimates from Impact Evaluation Baseline Report (2014). Table 85, p. 217.
A71: 4 | B71: Impact Evaluation Baseline Report (2014), Table 82.
A72: 5 | B72: For the purposes of this analysis "Non-tap" is assumed to be gathering water from surface sources.
A73: 6 | B73: Impact Evaluation Baseline Report (2014), Table 82.
A74: 7 | B74: Assumes that additional capacity of water treatment plant will lead to cleaner water, eliminating the need for people using piped connections to treat water.
A75: 8 | B75: Assumption based on medical recommendation that adults should consume about 3 liters of fluid per day (see below).
B76: http://bit.ly/1dHvzTS
A77: 9 | B77: Weatherbase (2014). Climate summary for Morogoro, Tanzania. Accessed 11/3/14.
B78: http://www.weatherbase.com/weather/weather-summary.php3?s=166836&cityname=Morogoro%2C+Morogoro%2C+Tanzania&units=metric
A79: 10 | B79: MedicineNet.com (2014). By definition, a kilocalorie is the amount of energy required to raise the temperature of a liter of water one degree centigrade (Celsius) at sea level. Because Morogoro lies at an elevation of 579 meters, it is likely that slightly less energy would be required to boil water there, so this should be treated as a high estimate. Accessed 11/3/14.
B80: http://www.medicinenet.com/script/main/art.asp?articlekey=8568
A81: 11 | B81: UnitJuggler.com (2014). Conversion rate for kcal to kWh.
B82: http://www.unitjuggler.com/convert-energy-from-kWh-to-kcal.html
A83: 12 | B83: Long-run marginal cost of electricity from the Tanzania Energy ERR models. (Estimate from Mott MacDonald Inc., based on Tanesco PSMP 2012.) Because many people will use less energy efficient fuels, such as wood, to boil their water, this estimate should be treated as the minimum cost required to boil water. The actual cost to consumers likely would be higher.
A84: 13 | B84: Assumption
A85: 14 | B85: Centers for Disease Control:
B86: http://www.cdc.gov/healthywater/pdf/emergency/09_202278-B_Make_Water_Safe_Flyer_508.pdf
A87: 15 | B87: Based info for siphon water filter found at address below. This represents the upper end of the potential filtering cost, as it is more likely that people filter the water through a simple cloth or by skimming the containers as described in the Evaluation Baseline Report, p. 148.
B88: http://www.connectinternational.nl/english/smartmodules/smart-tec/water-treatment/siphonwaterfilter
A89: 16 | B89: In addition to the variable tariff, DAWASCO also charges domestic customers a flat 1500/month service charge and commercial customers a 2000/month service charge. DAWASCO Tariff Rates found at:
B90: http://DAWASCO.co.tz/home/index.php?option=com_content&task=view&id=33&Itemid=48
A91: 17 | B91: EWURA (2013). Water Utilities Performance Review Report 2012/13. Appendix 1: Utility Profiles, p. 105.
A92: 18 | B92: Assumption. MCC assumed 80% in a similar model in Zambia.
A93: 19 | B93: Shkaratan (2012). Tanzania's Infrastructure: A Continental Perspective. World Bank Working Paper WPS5962. Table 7b.
A94: 20 | B94: World Bank (2014). Tanzania - Water Sector Support Project : P087154 - Implementation Status Results Report : Sequence 15 (English). http://www.wds.worldbank.org/external/default/WDSContentServer/WDSP/AFR/2014/08/02/090224b0825dbc80/1_0/Rendered/PDF/Tanzania000Wat0Report000Sequence015.pdf. Date based on estimated completion date listed in document.
A95: 21 | B95: dgMarket (2012). ICB Contract Award Notice: Cosntruction of the Lower Ruvu Transmission Main. Bid/Contract Reference No. ICB NO. CW - W116. Contract signed 9/13/2012. http://www.dgmarket.com/tenders/np-notice.do?noticeId=8353127. The Lower Ruvu tranmission main is not funded by MCC, but its construction is essential for the benefits of MCC's project to be realized. Without additional transmission capacity, the additional volume of clean water produced from the MCC-financed Lower Ruvu Treatment Plant will not reach customers.
A96: 22 | B96: Impact Evaluation Baseline Report (2014), Table 87.
A97: 23 | B97: The baseline report did not report data on adult diarrhea prevalence, so it is assumed to be equal to that of older children.
A98: 24 | B98: Cairncross et al (2010). Water, sanitation and hygiene for the prevention of diarrhoea. The International Journal of Epidemiology, Volume 39, Issue suppl 2, Pages i193-i205.
A99: 25 | B99: Impact Evaluation Baseline Report (2014), Table 89.
A100: 26 | B100: Impact Evaluation Baseline Report (2014), Table 68.
A101: 27 | B101: Author's estimates using 2011 National Panel Survey data and updated to 2014 prices.
A102: 28 | B102: Impact Evaluation Baseline Report (2014), Table 28. Weighted average of males and females employed in paid or home labor.
A103: 29 | B103: World Development Indicators (2014). Based on 2010 Demographic and Health Survey. National Bureau of Statistics (NBS) and ICF MacroTanzania. Dar es Salaam, Tanzania: NBS and ICF Macro, 2011 (and additional analysis).
A104: 30 | B104: Teshome et al (2009). Magnitude and determinants of stunting in children under-five years of age in food surplus region of Ethiopia: The case of West Gojam Zone. Ethiop J Health Dev 2009, 23(2):98-106.
A105: 31 | B105: Montenegro and Patrinos (2014). Comparable estimates of returns to schooling around the world. World Bank Policy Research Working Paper 7020 (WPS7020). The most recent returns to education listed in this paper is 2011.
A106: 32 | B106: Alderman et al (2006). Long term consequences of early childhood malnutrition. Oxf. Econ. Pap. (2006) 58 (3): 450-474. doi: 10.1093/oep/gpl008.
A107: 33 | B107: Assumption
A108: 34 | B108: Calculated using data from IMF World Economic Outlook Database, April 2014.

Sheet Costs
B1: Tanzania: Lower Ruvu Plant Expansion Activity | K1: Last updated: 2/8/2016
B2: Costs
B3: =IF('ERR & Sensitivity Analysis'!$I$10="N","Note: Current calculations are based on user input and are not the original MCC estimates.",IF('ERR & Sensitivity Analysis'!$I$13="N","Note: Current calculations are based on user input and are not the original MCC estimates.","")) -> 
A5: =A27 -> 1 | B5: Investment costs (US$) | C5: MCA-T | D5: GoT | E5: Total
B6: Capital costs | C6: 37831487.42 | D6: 6871781.756 | E6: =SUM(C6:D6) -> 44703269.18
B7: Supervision | C7: 3081510 | D7: 1146155.24 | E7: 4227665.24
B8: Feasibility studies | C8: 4474651.79 | D8: 0 | E8: 4474651.79
B9: Technical assistance | C9: 323517.7 | D9: 0 | E9: 323517.7
B10: Administrative costs | C10: 1755584.696 | D10: 0 | E10: 1755584.696
B11: Monitoring and evaluation (M&E) costs | C11: 1361911.633 | D11: 0 | E11: 1361911.633
B12: Total w/o Administrative, M&E | C12: =SUM(C6:C9) -> 45711166.91 | D12: =SUM(D6:D9) -> 8017936.996 | E12: =SUM(E6:E9) -> 53729103.91
B13: Total | C13: =SUM(C6:C11) -> 48828663.24 | D13: =SUM(D6:D11) -> 8017936.996 | E13: =SUM(E6:E11) -> 56846600.24
B16: DAWASCO operation and maintenance costs | C16: 2012-13
A17: =A28 -> 2 | B17: Water production (m3) | C17: =257845*365*(1-(nrw*techloss)) -> 52327064.3
A18: =A29 -> 3 | B18: Total O&M costs (Tsh) | C18: 55261703945
B19: O&M costs/m3 | C19: =C18/C17 -> 1056.082635
A21: =A29 -> 3 | B21: Total costs, including depreciation & amortization | C21: 55725735945
A23: =A30 -> 4 | B23: Total cost per unit delivered (US$/m3) | C23: =Assumptions!N32 -> 0.9
B26: Notes
A27: 1 | B27: MCA-T costs from Q20 MCA-T Detailed Financial Plan, GoT costs from Q22 GoT Detailed Financial Plan
A28: 2 | B28: EWURA (2013). Water Utilities Performance Review Report 2012/13. Table A2.2, p. 109.
A29: 3 | B29: EWURA (2013). Water Utilities Performance Review Report 2012/13. Table A2.15, p. 123. Comparison of these numbers with other cost per unit estimates for Tanzania, specifically Shkaratan (2012), suggest that these estimates include only a portion of the true depreciation and amortization costs.
A30: 4 | B30: Shkaratan (2012). Tanzania's Infrastructure: A Continental Perspective. World Bank Working Paper WPS5962. Table 7b.

Sheet Savings
B1: Tanzania: Lower Ruvu Plant Expansion Activity | J1: Last updated: 2/8/2016
B2: User Cost Savings Benefits
E4: =IF('ERR & Sensitivity Analysis'!$I$10="N","Note: Current calculations are based on user input and are not the original MCC estimates.",IF('ERR & Sensitivity Analysis'!$I$13="N","Note: Current calculations are based on user input and are not the original MCC estimates.","")) -> 
E5: All figures in 2014 US$ unless specified | F5: 2008 | G5: 2009 | H5: 2010 | I5: 2011 | J5: 2012 | K5: 2013 | L5: 2014 | M5: 2015 | N5: 2016 | O5: 2017 | P5: 2018 | Q5: 2019 | R5: 2020 | S5: 2021 | T5: 2022 | U5: 2023 | V5: 2024 | W5: 2025 | X5: 2026 | Y5: 2027 | Z5: 2028
E6: Year | F6: 0 | G6: 1 | H6: 2 | I6: 3 | J6: 4 | K6: 5 | L6: 6 | M6: 7 | N6: 8 | O6: 9 | P6: 10 | Q6: 11 | R6: 12 | S6: 13 | T6: 14 | U6: 15 | V6: 16 | W6: 17 | X6: 18 | Y6: 19 | Z6: 20
E7: Benefits? | F7: 0 | G7: 0 | H7: 0 | I7: 0 | J7: 0 | K7: 0 | L7: 1 | M7: 1 | N7: 1 | O7: 1 | P7: 1 | Q7: 1 | R7: 1 | S7: 1 | T7: 1 | U7: 1 | V7: 1 | W7: 1 | X7: 1 | Y7: 1 | Z7: 1
C8: Population of area served by DAWASCO | F8: =Beneficiaries!L15 -> 2300027.272 | G8: =Beneficiaries!M15 -> 2428828.799 | H8: =Beneficiaries!N15 -> 2564843.212 | I8: =Beneficiaries!O15 -> 2708474.432 | J8: =Beneficiaries!P15 -> 2860149 | K8: =Beneficiaries!Q15 -> 3020317.344 | L8: =Beneficiaries!R15 -> 3189455.115 | M8: =Beneficiaries!S15 -> 3368064.602 | N8: =Beneficiaries!T15 -> 3556676.219 | O8: =Beneficiaries!U15 -> 3755850.088 | P8: =Beneficiaries!V15 -> 3966177.693 | Q8: =Beneficiaries!W15 -> 4188283.643 | R8: =Beneficiaries!X15 -> 4422827.527 | S8: =Beneficiaries!Y15 -> 4670505.869 | T8: =Beneficiaries!Z15 -> 4932054.198 | U8: =Beneficiaries!AA15 -> 5208249.233 | V8: =Beneficiaries!AB15 -> 5499911.19 | W8: =Beneficiaries!AC15 -> 5807906.216 | X8: =Beneficiaries!AD15 -> 6133148.964 | Y8: =Beneficiaries!AE15 -> 6476605.306 | Z8: =Beneficiaries!AF15 -> 6839295.204
C9: Households in area served by DAWASCO | F9: =Beneficiaries!L31 -> 577093.5284 | G9: =Beneficiaries!M31 -> 609410.766 | H9: =Beneficiaries!N31 -> 643537.7688 | I9: =Beneficiaries!O31 -> 679575.8839 | J9: =Beneficiaries!P31 -> 717632.1334 | K9: =Beneficiaries!Q31 -> 757819.5329 | L9: =Beneficiaries!R31 -> 800257.4267 | M9: =Beneficiaries!S31 -> 845071.8426 | N9: =Beneficiaries!T31 -> 892395.8658 | O9: =Beneficiaries!U31 -> 942370.0343 | P9: =Beneficiaries!V31 -> 995142.7562 | Q9: =Beneficiaries!W31 -> 1050870.751 | R9: =Beneficiaries!X31 -> 1109719.513 | S9: =Beneficiaries!Y31 -> 1171863.805 | T9: =Beneficiaries!Z31 -> 1237488.178 | U9: =Beneficiaries!AA31 -> 1306787.516 | V9: =Beneficiaries!AB31 -> 1379967.617 | W9: =Beneficiaries!AC31 -> 1457245.804 | X9: =Beneficiaries!AD31 -> 1538851.569 | Y9: =Beneficiaries!AE31 -> 1625027.257 | Z9: =Beneficiaries!AF31 -> 1716028.783
C11: Without Project
C13: Water produced by DAWASCO (m3) | G13: =Costs!$C17 -> 52327064.3 | H13: =Costs!$C17 -> 52327064.3 | I13: =Costs!$C17 -> 52327064.3 | J13: =Costs!$C17 -> 52327064.3 | K13: =Costs!$C17 -> 52327064.3 | L13: =Costs!$C17 -> 52327064.3 | M13: =Costs!$C17 -> 52327064.3 | N13: =Costs!$C17 -> 52327064.3 | O13: =Costs!$C17 -> 52327064.3 | P13: =Costs!$C17 -> 52327064.3 | Q13: =Costs!$C17 -> 52327064.3 | R13: =Costs!$C17 -> 52327064.3 | S13: =Costs!$C17 -> 52327064.3 | T13: =Costs!$C17 -> 52327064.3 | U13: =Costs!$C17 -> 52327064.3 | V13: =Costs!$C17 -> 52327064.3 | W13: =Costs!$C17 -> 52327064.3 | X13: =Costs!$C17 -> 52327064.3 | Y13: =Costs!$C17 -> 52327064.3 | Z13: =Costs!$C17 -> 52327064.3
D14: Lower Ruvu | G14: =cap_wop*365*(1-(nrw*techloss)) -> 36529200 | H14: 36529200 | I14: 36529200 | J14: 36529200 | K14: 36529200 | L14: 36529200 | M14: 36529200 | N14: 36529200 | O14: 36529200 | P14: 36529200 | Q14: 36529200 | R14: 36529200 | S14: 36529200 | T14: 36529200 | U14: 36529200 | V14: 36529200 | W14: 36529200 | X14: 36529200 | Y14: 36529200 | Z14: 36529200
D15: Other sources | G15: =G13-G14 -> 15797864.3 | H15: =H13-H14 -> 15797864.3 | I15: 15797864.3 | J15: 15797864.3 | K15: 15797864.3 | L15: 15797864.3 | M15: 15797864.3 | N15: 15797864.3 | O15: 15797864.3 | P15: 15797864.3 | Q15: 15797864.3 | R15: 15797864.3 | S15: 15797864.3 | T15: 15797864.3 | U15: 15797864.3 | V15: 15797864.3 | W15: 15797864.3 | X15: 15797864.3 | Y15: 15797864.3 | Z15: 15797864.3
D16: Capacity? | G16: =IF(G22>G14,"Yes","No") -> No | H16: No | I16: No | J16: No | K16: No | L16: No | M16: No | N16: No | O16: No | P16: No | Q16: No | R16: No | S16: No | T16: No | U16: No | V16: No | W16: No | X16: Yes | Y16: Yes | Z16: Yes
C18: Households using DAWASCO sources | F18: % of households | G18: =SUM(G19:G20) -> 316893.5983 | H18: =SUM(H19:H20) -> 334639.6398 | I18: 353379.4596 | J18: 373168.7094 | K18: 394066.1571 | L18: 416133.8619 | M18: 439437.3582 | N18: 464045.8502 | O18: 490032.4178 | P18: 517474.2332 | Q18: 546452.7903 | R18: 577054.1465 | S18: 609369.1787 | T18: 643493.8528 | U18: 679529.5085 | V18: 717583.161 | W18: 757767.818 | X18: 800202.8158 | Y18: 845014.1735 | Z18: 892334.9672
D19: Own tap | F19: =Assumptions!C9 -> 0.13 | G19: =$F19*G$9 -> 79223.39957 | H19: =$F19*H$9 -> 83659.90995 | I19: 88344.86491 | J19: 93292.17734 | K19: 98516.53927 | L19: 104033.4655 | M19: 109859.3395 | N19: 116011.4626 | O19: 122508.1045 | P19: 129368.5583 | Q19: 136613.1976 | R19: 144263.5366 | S19: 152342.2947 | T19: 160873.4632 | U19: 169882.3771 | V19: 179395.7902 | W19: 189441.9545 | X19: 200050.704 | Y19: 211253.5434 | Z19: 223083.7418
D20: Other piped | F20: =Assumptions!C10 -> 0.39 | G20: =$F20*G$9 -> 237670.1987 | H20: 250979.7299 | I20: 265034.5947 | J20: 279876.532 | K20: 295549.6178 | L20: 312100.3964 | M20: 329578.0186 | N20: 348034.3877 | O20: 367524.3134 | P20: 388105.6749 | Q20: 409839.5927 | R20: 432790.6099 | S20: 457026.8841 | T20: 482620.3896 | U20: 509647.1314 | V20: 538187.3707 | W20: 568325.8635 | X20: 600152.1119 | Y20: 633760.6301 | Z20: 669251.2254
C22: Volume of household water demanded, DAWASCO (m3) | F22: Liters/capita/day | G22: =SUM(G23:G24) -> 14924606.48 | H22: =SUM(H23:H24) -> 15760384.45 | I22: 16642965.98 | J22: 17574972.07 | K22: 18559170.51 | L22: 19598484.06 | M22: 20695999.16 | N22: 21854975.12 | O22: 23078853.72 | P22: 24371269.53 | Q22: 25736060.62 | R22: 27177280.02 | S22: 28699207.7 | T22: 30306363.33 | U22: 32003519.68 | V22: 33795716.78 | W22: 35688276.92 | X22: 37686820.43 | Y22: 39797282.37 | Z22: 42025930.18
D23: Own tap | F23: =tap_lpcpd_wop -> 114.5 | G23: =$F23*$F19*G$8*365/1000 -> 13195887.59 | H23: =$F23*$F19*H$8*365/1000 -> 13934857.29 | I23: 14715209.3 | J23: 15539261.02 | K23: 16409459.64 | L23: 17328389.38 | M23: 18298779.18 | N23: 19323510.82 | O23: 20405627.42 | P23: 21548342.56 | Q23: 22755049.74 | R23: 24029332.53 | S23: 25374975.15 | T23: 26795973.76 | U23: 28296548.29 | V23: 29881154.99 | W23: 31554499.67 | X23: 33321551.65 | Y23: 35187558.55 | Z23: 37158061.82
D24: Other piped | F24: =pipe_lpcpd_wop -> 5 | G24: =$F24*$F20*G$8*365/1000 -> 1728718.898 | H24: 1825527.156 | I24: 1927756.677 | J24: 2035711.051 | K24: 2149710.87 | L24: 2270094.678 | M24: 2397219.98 | N24: 2531464.299 | O24: 2673226.3 | P24: 2822926.973 | Q24: 2981010.883 | R24: 3147947.493 | S24: 3324232.552 | T24: 3510389.575 | U24: 3706971.391 | V24: 3914561.789 | W24: 4133777.249 | X24: 4365268.775 | Y24: 4609723.827 | Z24: 4867868.361
C26: Volume of household water consumed DAWASCO (m3) | F26: % of consumption | G26: =IF(G$16="No",G22,G14) -> 14924606.48 | H26: 15760384.45 | I26: 16642965.98 | J26: 17574972.07 | K26: 18559170.51 | L26: 19598484.06 | M26: 20695999.16 | N26: 21854975.12 | O26: 23078853.72 | P26: 24371269.53 | Q26: 25736060.62 | R26: 27177280.02 | S26: 28699207.7 | T26: 30306363.33 | U26: 32003519.68 | V26: 33795716.78 | W26: 35688276.92 | X26: 36529200 | Y26: 36529200 | Z26: 36529200
D27: Own tap | F27: =F23/SUM(F23:F24) -> 0.9581589958 | G27: =IF(G$16="No",G23,G$14*$F27) -> 13195887.59 | H27: 13934857.29 | I27: 14715209.3 | J27: 15539261.02 | K27: 16409459.64 | L27: 17328389.38 | M27: 18298779.18 | N27: 19323510.82 | O27: 20405627.42 | P27: 21548342.56 | Q27: 22755049.74 | R27: 24029332.53 | S27: 25374975.15 | T27: 26795973.76 | U27: 28296548.29 | V27: 29881154.99 | W27: 31554499.67 | X27: 35000781.59 | Y27: 35000781.59 | Z27: 35000781.59
D28: Other piped | F28: =F24/SUM(F23:F24) -> 0.04184100418 | G28: =IF(G$16="No",G24,G$14*$F28) -> 1728718.898 | H28: 1825527.156 | I28: 1927756.677 | J28: 2035711.051 | K28: 2149710.87 | L28: 2270094.678 | M28: 2397219.98 | N28: 2531464.299 | O28: 2673226.3 | P28: 2822926.973 | Q28: 2981010.883 | R28: 3147947.493 | S28: 3324232.552 | T28: 3510389.575 | U28: 3706971.391 | V28: 3914561.789 | W28: 4133777.249 | X28: 1528418.41 | Y28: 1528418.41 | Z28: 1528418.41
C30: Total household expenditures on water, DAWASCO sources (US$) | F30: Cost/m3 | G30: =SUM(G31:G32) -> 22179980.8 | H30: 23422059.72 | I30: 24733695.07 | J30: 26118781.99 | K30: 27581433.79 | L30: 29125994.08 | M30: 30757049.75 | N30: 32479444.53 | O30: 34298293.42 | P30: 36218997.86 | Q30: 38247261.74 | R30: 40389108.39 | S30: 42650898.46 | T30: 45039348.78 | U30: 47561552.31 | V30: 50224999.24 | W30: 53037599.2 | X30: 56007704.75 | Y30: 59144136.22 | Z30: 62456207.85
D31: Own tap | F31: =Assumptions!H9*1000/Tsh_USD -> 1.036582329 | G31: =G23*$F31 -> 13678623.89 | H31: =H23*$F31 -> 14444626.83 | I31: 15253525.93 | J31: 16107723.38 | K31: 17009755.89 | L31: 17962302.22 | M31: 18968191.14 | N31: 20030409.85 | O31: 21152112.8 | P31: 22336631.11 | Q31: 23587482.46 | R31: 24908381.47 | S31: 26303250.84 | T31: 27776232.88 | U31: 29331701.93 | V31: 30974277.23 | W31: 32708836.76 | X31: 34540531.62 | Y31: 36474801.39 | Z31: 38517390.27
D32: Other piped | F32: =Assumptions!H10*1000/Tsh_USD -> 4.917720818 | G32: =G24*$F32 -> 8501356.912 | H32: 8977432.9 | I32: 9480169.142 | J32: 10011058.61 | K32: 10571677.9 | L32: 11163691.86 | M32: 11788858.6 | N32: 12449034.68 | O32: 13146180.63 | P32: 13882366.74 | Q32: 14659779.28 | R32: 15480726.92 | S32: 16347647.63 | T32: 17263115.89 | U32: 18229850.38 | V32: 19250722 | W32: 20328762.44 | X32: 21467173.13 | Y32: 22669334.83 | Z32: 23938817.58
C34: With Project
C36: Water produced by DAWASCO (m3) | G36: =SUM(G37:G38) -> 52327064.3 | H36: =SUM(H37:H38) -> 52327064.3 | I36: 52327064.3 | J36: 52327064.3 | K36: 52327064.3 | L36: 70591664.3 | M36: 70591664.3 | N36: 70591664.3 | O36: 70591664.3 | P36: 70591664.3 | Q36: 70591664.3 | R36: 70591664.3 | S36: 70591664.3 | T36: 70591664.3 | U36: 70591664.3 | V36: 70591664.3 | W36: 70591664.3 | X36: 70591664.3 | Y36: 70591664.3 | Z36: 70591664.3
D37: Lower Ruvu | G37: =IF(G7=1,cap_wp*365*(1-(nrw*techloss)),G14) -> 36529200 | H37: 36529200 | I37: 36529200 | J37: 36529200 | K37: 36529200 | L37: 54793800 | M37: 54793800 | N37: 54793800 | O37: 54793800 | P37: 54793800 | Q37: 54793800 | R37: 54793800 | S37: 54793800 | T37: 54793800 | U37: 54793800 | V37: 54793800 | W37: 54793800 | X37: 54793800 | Y37: 54793800 | Z37: 54793800
D38: Other sources | G38: =G15 -> 15797864.3 | H38: =H15 -> 15797864.3 | I38: 15797864.3 | J38: 15797864.3 | K38: 15797864.3 | L38: 15797864.3 | M38: 15797864.3 | N38: 15797864.3 | O38: 15797864.3 | P38: 15797864.3 | Q38: 15797864.3 | R38: 15797864.3 | S38: 15797864.3 | T38: 15797864.3 | U38: 15797864.3 | V38: 15797864.3 | W38: 15797864.3 | X38: 15797864.3 | Y38: 15797864.3 | Z38: 15797864.3
D39: Capacity? | G39: =IF(G45>G37,"Yes","No") -> No | H39: No | I39: No | J39: No | K39: No | L39: No | M39: No | N39: No | O39: No | P39: No | Q39: No | R39: No | S39: No | T39: No | U39: No | V39: No | W39: No | X39: No | Y39: No | Z39: No
C41: Households using DAWASCO sources | F41: % of households | G41: =SUM(G42:G43) -> 316893.5983 | H41: 334639.6398 | I41: 353379.4596 | J41: 373168.7094 | K41: 394066.1571 | L41: 416133.8619 | M41: 439437.3582 | N41: 464045.8502 | O41: 490032.4178 | P41: 517474.2332 | Q41: 546452.7903 | R41: 577054.1465 | S41: 609369.1787 | T41: 643493.8528 | U41: 679529.5085 | V41: 717583.161 | W41: 757767.818 | X41: 800202.8158 | Y41: 845014.1735 | Z41: 892334.9672
D42: Own tap | F42: =Assumptions!C41 -> 0.13 | G42: =IF(G$7=0,G19,$F42*G$9) -> 79223.39957 | H42: =IF(H$7=0,H19,$F42*H$9) -> 83659.90995 | I42: 88344.86491 | J42: 93292.17734 | K42: 98516.53927 | L42: 104033.4655 | M42: 109859.3395 | N42: 116011.4626 | O42: 122508.1045 | P42: 129368.5583 | Q42: 136613.1976 | R42: 144263.5366 | S42: 152342.2947 | T42: 160873.4632 | U42: 169882.3771 | V42: 179395.7902 | W42: 189441.9545 | X42: 200050.704 | Y42: 211253.5434 | Z42: 223083.7418
D43: Other piped | F43: =Assumptions!C42 -> 0.39 | G43: =IF(G$7=0,G20,$F43*G$9) -> 237670.1987 | H43: 250979.7299 | I43: 265034.5947 | J43: 279876.532 | K43: 295549.6178 | L43: 312100.3964 | M43: 329578.0186 | N43: 348034.3877 | O43: 367524.3134 | P43: 388105.6749 | Q43: 409839.5927 | R43: 432790.6099 | S43: 457026.8841 | T43: 482620.3896 | U43: 509647.1314 | V43: 538187.3707 | W43: 568325.8635 | X43: 600152.1119 | Y43: 633760.6301 | Z43: 669251.2254
C45: Volume of household water demanded, DAWASCO (m3) | F45: Liters/capita/day | G45: =SUM(G46:G47) -> 14924606.48 | H45: =SUM(H46:H47) -> 15760384.45 | I45: 16642965.98 | J45: 17574972.07 | K45: 18559170.51 | L45: 19598484.06 | M45: 20695999.16 | N45: 21854975.12 | O45: 23078853.72 | P45: 24371269.53 | Q45: 25736060.62 | R45: 27177280.02 | S45: 28699207.7 | T45: 30306363.33 | U45: 32003519.68 | V45: 33795716.78 | W45: 35688276.92 | X45: 37686820.43 | Y45: 39797282.37 | Z45: 42025930.18
D46: Own tap | F46: =tap_lpcpd_wp -> 114.5 | G46: =$F46*$F42*G$8*365/1000 -> 13195887.59 | H46: =$F46*$F42*H$8*365/1000 -> 13934857.29 | I46: 14715209.3 | J46: =$F46*$F42*J$8*365/1000 -> 15539261.02 | K46: 16409459.64 | L46: 17328389.38 | M46: 18298779.18 | N46: 19323510.82 | O46: 20405627.42 | P46: 21548342.56 | Q46: 22755049.74 | R46: 24029332.53 | S46: 25374975.15 | T46: 26795973.76 | U46: 28296548.29 | V46: 29881154.99 | W46: 31554499.67 | X46: 33321551.65 | Y46: 35187558.55 | Z46: 37158061.82
D47: Other piped | F47: =pipe_lpcpd_wp -> 5 | G47: =$F47*$F43*G$8*365/1000 -> 1728718.898 | H47: =$F47*$F43*H$8*365/1000 -> 1825527.156 | I47: 1927756.677 | J47: 2035711.051 | K47: 2149710.87 | L47: 2270094.678 | M47: 2397219.98 | N47: 2531464.299 | O47: 2673226.3 | P47: 2822926.973 | Q47: 2981010.883 | R47: 3147947.493 | S47: 3324232.552 | T47: 3510389.575 | U47: 3706971.391 | V47: 3914561.789 | W47: 4133777.249 | X47: 4365268.775 | Y47: 4609723.827 | Z47: 4867868.361
C49: Volume of household water consumed DAWASCO (m3) | F49: % of consumption | G49: =IF(G$39="No",G45,G37) -> 14924606.48 | H49: 15760384.45 | I49: 16642965.98 | J49: 17574972.07 | K49: 18559170.51 | L49: 19598484.06 | M49: 20695999.16 | N49: 21854975.12 | O49: 23078853.72 | P49: 24371269.53 | Q49: 25736060.62 | R49: 27177280.02 | S49: 28699207.7 | T49: 30306363.33 | U49: 32003519.68 | V49: 33795716.78 | W49: 35688276.92 | X49: 37686820.43 | Y49: 39797282.37 | Z49: 42025930.18
D50: Own tap | F50: =F46/SUM(F46:F47) -> 0.9581589958 | G50: =IF(G$39="No",G46,G$37*$F50) -> 13195887.59 | H50: 13934857.29 | I50: 14715209.3 | J50: 15539261.02 | K50: 16409459.64 | L50: 17328389.38 | M50: 18298779.18 | N50: 19323510.82 | O50: 20405627.42 | P50: 21548342.56 | Q50: 22755049.74 | R50: 24029332.53 | S50: 25374975.15 | T50: 26795973.76 | U50: 28296548.29 | V50: 29881154.99 | W50: 31554499.67 | X50: 33321551.65 | Y50: 35187558.55 | Z50: 37158061.82
D51: Other piped | F51: =F47/SUM(F46:F47) -> 0.04184100418 | G51: =IF(G$39="No",G47,G$37*$F51) -> 1728718.898 | H51: 1825527.156 | I51: 1927756.677 | J51: 2035711.051 | K51: 2149710.87 | L51: 2270094.678 | M51: 2397219.98 | N51: 2531464.299 | O51: 2673226.3 | P51: 2822926.973 | Q51: 2981010.883 | R51: 3147947.493 | S51: 3324232.552 | T51: 3510389.575 | U51: 3706971.391 | V51: 3914561.789 | W51: 4133777.249 | X51: 4365268.775 | Y51: 4609723.827 | Z51: 4867868.361
C53: Additional volume of household water consumed DAWASCO (m3) | G53: =SUM(G54:G55) -> 0 | H53: =SUM(H54:H55) -> 0 | I53: 0 | J53: 0 | K53: 0 | L53: 0 | M53: 0 | N53: 0 | O53: 0 | P53: 0 | Q53: 0 | R53: 0 | S53: 0 | T53: 0 | U53: 0 | V53: 0 | W53: 0 | X53: 1157620.428 | Y53: 3268082.372 | Z53: 5496730.185
D54: Own tap | G54: =G50-G27 -> 0 | H54: =H50-H27 -> 0 | I54: 0 | J54: 0 | K54: 0 | L54: 0 | M54: 0 | N54: 0 | O54: 0 | P54: 0 | Q54: 0 | R54: 0 | S54: 0 | T54: 0 | U54: 0 | V54: 0 | W54: 0 | X54: -1679229.937 | Y54: 186776.9553 | Z54: 2157280.234
D55: Other piped | G55: =G51-G28 -> 0 | H55: =H51-H28 -> 0 | I55: 0 | J55: 0 | K55: 0 | L55: 0 | M55: 0 | N55: 0 | O55: 0 | P55: 0 | Q55: 0 | R55: 0 | S55: 0 | T55: 0 | U55: 0 | V55: 0 | W55: 0 | X55: 2836850.365 | Y55: 3081305.417 | Z55: 3339449.951
C57: Total household expenditures on same volume of water, DAWASCO sources (US$) | F57: Cost/m3 | G57: =SUM(G58:G59) -> 22179980.8 | H57: =SUM(H58:H59) -> 23422059.72 | I57: 24733695.07 | J57: 26118781.99 | K57: 27581433.79 | L57: 13069701.13 | M57: 13801604.4 | N57: 14574494.24 | O57: 15390665.92 | P57: 16252543.21 | Q57: 17162685.63 | R57: 18123796.03 | S57: 19138728.6 | T57: 20210497.4 | U57: 21342285.26 | V57: 22537453.23 | W57: 23799550.62 | X57: 24360339.57 | Y57: 24360339.57 | Z57: 24360339.57
D58: Own tap | F58: =Assumptions!H41*1000/Tsh_USD -> 0.666873065 | G58: =IF(G$7=0,G31,(G$7*(G50-G54)*$F58)+((1-G$7)*G31)) -> 13678623.89 | H58: =IF(H$7=0,H31,(H$7*(H50-H54)*$F58)+((1-H$7)*H31)) -> 14444626.83 | I58: 15253525.93 | J58: 16107723.38 | K58: 17009755.89 | L58: 11555836.14 | M58: 12202962.96 | N58: 12886328.89 | O58: 13607963.3 | P58: 14370009.25 | Q58: 15174729.77 | R58: 16024514.63 | S58: 16921887.45 | T58: 17869513.15 | U58: 18870205.89 | V58: 19926937.42 | W58: 21042845.91 | X58: 23341078.5 | Y58: 23341078.5 | Z58: 23341078.5
D59: Other piped | F59: =Assumptions!H42*1000/Tsh_USD -> 0.666873065 | G59: =IF(G$7=0,G32,(G$7*(G51-G55)*$F59)+((1-G$7)*G32)) -> 8501356.912 | H59: =IF(H$7=0,H32,(H$7*(H51-H55)*$F59)+((1-H$7)*H32)) -> 8977432.9 | I59: 9480169.142 | J59: 10011058.61 | K59: 10571677.9 | L59: 1513864.996 | M59: 1598641.436 | N59: 1688165.356 | O59: 1782702.616 | P59: 1882533.963 | Q59: 1987955.865 | R59: 2099281.393 | S59: 2216841.151 | T59: 2340984.255 | U59: 2472079.374 | V59: 2610515.819 | W59: 2756704.704 | X59: 1019261.07 | Y59: 1019261.07 | Z59: 1019261.07
C61: Total change in water expenditures (US$) | G61: =G57-G30 -> 0 | H61: =H57-H30 -> 0 | I61: =I57-I30 -> 0 | J61: =J57-J30 -> 0 | K61: =K57-K30 -> 0 | L61: =L30-L57 -> 16056292.95 | M61: 16955445.35 | N61: 17904950.29 | O61: 18907627.51 | P61: 19966454.65 | Q61: 21084576.11 | R61: 22265312.37 | S61: 23512169.86 | T61: 24828851.37 | U61: 26219267.05 | V61: 27687546 | W61: 29238048.58 | X61: 31647365.18 | Y61: 34783796.65 | Z61: 38095868.28

Sheet Health
B1: Tanzania: Lower Ruvu Plant Expansion Activity | J1: Last updated: 2/8/2016
B2: Health Benefits
E4: =IF('ERR & Sensitivity Analysis'!$I$10="N","Note: Current calculations are based on user input and are not the original MCC estimates.",IF('ERR & Sensitivity Analysis'!$I$13="N","Note: Current calculations are based on user input and are not the original MCC estimates.","")) -> 
E5: All figures in 2014 US$ unless specified | F5: 2008 | G5: 2009 | H5: 2010 | I5: 2011 | J5: 2012 | K5: 2013 | L5: 2014 | M5: 2015 | N5: 2016 | O5: 2017 | P5: 2018 | Q5: 2019 | R5: 2020 | S5: 2021 | T5: 2022 | U5: 2023 | V5: 2024 | W5: 2025 | X5: 2026 | Y5: 2027 | Z5: 2028
E6: Year | F6: 0 | G6: 1 | H6: 2 | I6: 3 | J6: 4 | K6: 5 | L6: 6 | M6: 7 | N6: 8 | O6: 9 | P6: 10 | Q6: 11 | R6: 12 | S6: 13 | T6: 14 | U6: 15 | V6: 16 | W6: 17 | X6: 18 | Y6: 19 | Z6: 20
E7: Benefits? | F7: 0 | G7: 0 | H7: 0 | I7: 0 | J7: 0 | K7: 0 | L7: =IF(1/Assumptions!$N$54+K7<=1, 1/Assumptions!$N$54+K7, 1) -> 0.3333333333 | M7: =IF(1/Assumptions!$N$54+L7<=1, 1/Assumptions!$N$54+L7, 1) -> 0.6666666667 | N7: =IF(1/Assumptions!$N$54+M7<=1, 1/Assumptions!$N$54+M7, 1) -> 1 | O7: =IF(1/Assumptions!$N$54+N7<=1, 1/Assumptions!$N$54+N7, 1) -> 1 | P7: =IF(1/Assumptions!$N$54+O7<=1, 1/Assumptions!$N$54+O7, 1) -> 1 | Q7: =IF(1/Assumptions!$N$54+P7<=1, 1/Assumptions!$N$54+P7, 1) -> 1 | R7: =IF(1/Assumptions!$N$54+Q7<=1, 1/Assumptions!$N$54+Q7, 1) -> 1 | S7: =IF(1/Assumptions!$N$54+R7<=1, 1/Assumptions!$N$54+R7, 1) -> 1 | T7: =IF(1/Assumptions!$N$54+S7<=1, 1/Assumptions!$N$54+S7, 1) -> 1 | U7: =IF(1/Assumptions!$N$54+T7<=1, 1/Assumptions!$N$54+T7, 1) -> 1 | V7: =IF(1/Assumptions!$N$54+U7<=1, 1/Assumptions!$N$54+U7, 1) -> 1 | W7: =IF(1/Assumptions!$N$54+V7<=1, 1/Assumptions!$N$54+V7, 1) -> 1 | X7: =IF(1/Assumptions!$N$54+W7<=1, 1/Assumptions!$N$54+W7, 1) -> 1 | Y7: =IF(1/Assumptions!$N$54+X7<=1, 1/Assumptions!$N$54+X7, 1) -> 1 | Z7: =IF(1/Assumptions!$N$54+Y7<=1, 1/Assumptions!$N$54+Y7, 1) -> 1
C8: Population using DAWASCO sources | F8: =Beneficiaries!L20 -> 0 | G8: =Beneficiaries!M20 -> 1262990.976 | H8: =Beneficiaries!N20 -> 1333718.47 | I8: =Beneficiaries!O20 -> 1408406.705 | J8: =Beneficiaries!P20 -> 1487277.48 | K8: =Beneficiaries!Q20 -> 1570565.019 | L8: =Beneficiaries!R20 -> 1658516.66 | M8: =Beneficiaries!S20 -> 1751393.593 | N8: =Beneficiaries!T20 -> 1849471.634 | O8: =Beneficiaries!U20 -> 1953042.046 | P8: =Beneficiaries!V20 -> 2062412.4 | Q8: =Beneficiaries!W20 -> 2177907.495 | R8: =Beneficiaries!X20 -> 2299870.314 | S8: =Beneficiaries!Y20 -> 2428663.052 | T8: =Beneficiaries!Z20 -> 2564668.183 | U8: =Beneficiaries!AA20 -> 2708289.601 | V8: =Beneficiaries!AB20 -> 2859953.819 | W8: =Beneficiaries!AC20 -> 3020111.233 | X8: =Beneficiaries!AD20 -> 3189237.462 | Y8: =Beneficiaries!AE20 -> 3367834.759 | Z8: =Beneficiaries!AF20 -> 3556433.506
D9: Age < 5 | F9: =Beneficiaries!L21 -> 0 | G9: =Beneficiaries!M21 -> 184396.6824 | H9: =Beneficiaries!N21 -> 194722.8967 | I9: =Beneficiaries!O21 -> 205627.3789 | J9: =Beneficiaries!P21 -> 217142.5121 | K9: =Beneficiaries!Q21 -> 229302.4928 | L9: =Beneficiaries!R21 -> 242143.4324 | M9: =Beneficiaries!S21 -> 255703.4646 | N9: =Beneficiaries!T21 -> 270022.8586 | O9: =Beneficiaries!U21 -> 285144.1387 | P9: =Beneficiaries!V21 -> 301112.2104 | Q9: =Beneficiaries!W21 -> 317974.4942 | R9: =Beneficiaries!X21 -> 335781.0659 | S9: =Beneficiaries!Y21 -> 354584.8056 | T9: =Beneficiaries!Z21 -> 374441.5547 | U9: =Beneficiaries!AA21 -> 395410.2817 | V9: =Beneficiaries!AB21 -> 417553.2575 | W9: =Beneficiaries!AC21 -> 440936.2399 | X9: =Beneficiaries!AD21 -> 465628.6694 | Y9: =Beneficiaries!AE21 -> 491703.8749 | Z9: =Beneficiaries!AF21 -> 519239.2919
D10: Age 5-18 | F10: =Beneficiaries!L22 -> 0 | G10: =Beneficiaries!M22 -> 337218.5905 | H10: =Beneficiaries!N22 -> 356102.8315 | I10: =Beneficiaries!O22 -> 376044.5901 | J10: =Beneficiaries!P22 -> 397103.0872 | K10: =Beneficiaries!Q22 -> 419340.86 | L10: =Beneficiaries!R22 -> 442823.9482 | M10: =Beneficiaries!S22 -> 467622.0893 | N10: =Beneficiaries!T22 -> 493808.9263 | O10: =Beneficiaries!U22 -> 521462.2262 | P10: =Beneficiaries!V22 -> 550664.1108 | Q10: =Beneficiaries!W22 -> 581501.301 | R10: =Beneficiaries!X22 -> 614065.3739 | S10: =Beneficiaries!Y22 -> 648453.0348 | T10: =Beneficiaries!Z22 -> 684766.4048 | U10: =Beneficiaries!AA22 -> 723113.3235 | V10: =Beneficiaries!AB22 -> 763607.6696 | W10: =Beneficiaries!AC22 -> 806369.6991 | X10: =Beneficiaries!AD22 -> 851526.4022 | Y10: =Beneficiaries!AE22 -> 899211.8808 | Z10: =Beneficiaries!AF22 -> 949567.7461
D11: Age > 18 | F11: =Beneficiaries!L23 -> 0 | G11: =Beneficiaries!M23 -> 741375.7027 | H11: =Beneficiaries!N23 -> 782892.742 | I11: =Beneficiaries!O23 -> 826734.7356 | J11: =Beneficiaries!P23 -> 873031.8808 | K11: =Beneficiaries!Q23 -> 921921.6661 | L11: =Beneficiaries!R23 -> 973549.2794 | M11: =Beneficiaries!S23 -> 1028068.039 | N11: =Beneficiaries!T23 -> 1085639.849 | O11: =Beneficiaries!U23 -> 1146435.681 | P11: =Beneficiaries!V23 -> 1210636.079 | Q11: =Beneficiaries!W23 -> 1278431.699 | R11: =Beneficiaries!X23 -> 1350023.874 | S11: =Beneficiaries!Y23 -> 1425625.211 | T11: =Beneficiaries!Z23 -> 1505460.223 | U11: =Beneficiaries!AA23 -> 1589765.996 | V11: =Beneficiaries!AB23 -> 1678792.892 | W11: =Beneficiaries!AC23 -> 1772805.293 | X11: =Beneficiaries!AD23 -> 1872082.39 | Y11: =Beneficiaries!AE23 -> 1976919.004 | Z11: =Beneficiaries!AF23 -> 2087626.468
C12: Households using DAWASCO sources | G12: =Beneficiaries!M34 -> 316893.5983 | H12: =Beneficiaries!N34 -> 334639.6398 | I12: =Beneficiaries!O34 -> 353379.4596 | J12: =Beneficiaries!P34 -> 373168.7094 | K12: =Beneficiaries!Q34 -> 394066.1571 | L12: =Beneficiaries!R34 -> 416133.8619 | M12: =Beneficiaries!S34 -> 439437.3582 | N12: =Beneficiaries!T34 -> 464045.8502 | O12: =Beneficiaries!U34 -> 490032.4178 | P12: =Beneficiaries!V34 -> 517474.2332 | Q12: =Beneficiaries!W34 -> 546452.7903 | R12: =Beneficiaries!X34 -> 577054.1465 | S12: =Beneficiaries!Y34 -> 609369.1787 | T12: =Beneficiaries!Z34 -> 643493.8528 | U12: =Beneficiaries!AA34 -> 679529.5085 | V12: =Beneficiaries!AB34 -> 717583.161 | W12: =Beneficiaries!AC34 -> 757767.818 | X12: =Beneficiaries!AD34 -> 800202.8158 | Y12: =Beneficiaries!AE34 -> 845014.1735 | Z12: =Beneficiaries!AF34 -> 892334.9672
C14: Without Project
C16: Cases of diarrheal disease | F16: =SUM(F17:F19) -> 0 | G16: =SUM(G17:G19) -> 34479.65363 | H16: 36410.51424 | I16: 38449.50303 | J16: 40602.6752 | K16: 42876.42502 | L16: 45277.50482 | M16: 47813.04509 | N16: 50490.57561 | O16: 53318.04785 | P16: 56303.85852 | Q16: 59456.8746 | R16: 62786.45958 | S16: 66302.50132 | T16: 70015.44139 | U16: 73936.30611 | V16: 78076.73925 | W16: 82449.03665 | X16: 87066.1827 | Y16: 91941.88893 | Z16: 97090.63471
D17: Age < 5 | F17: =F9*diarU5 -> 0 | G17: =G9*diarU5 -> 12907.76777 | H17: 13630.60277 | I17: 14393.91652 | J17: 15199.97585 | K17: 16051.17449 | L17: 16950.04026 | M17: 17899.24252 | N17: 18901.6001 | O17: 19960.08971 | P17: 21077.85473 | Q17: 22258.21459 | R17: 23504.67461 | S17: 24820.93639 | T17: 26210.90883 | U17: 27678.71972 | V17: 29228.72803 | W17: 30865.5368 | X17: 32594.00686 | Y17: 34419.27124 | Z17: 36346.75043
D18: Age 5-18 | F18: =F10*diar518 -> 0 | G18: 6744.37181 | H18: 7122.056631 | I18: 7520.891802 | J18: 7942.061743 | K18: 8386.817201 | L18: 8856.478964 | M18: 9352.441786 | N18: 9876.178526 | O18: 10429.24452 | P18: 11013.28222 | Q18: 11630.02602 | R18: 12281.30748 | S18: 12969.0607 | T18: 13695.3281 | U18: 14462.26647 | V18: 15272.15339 | W18: 16127.39398 | X18: 17030.52804 | Y18: 17984.23762 | Z18: 18991.35492
D19: Age > 18 | F19: =F11*diar18 -> 0 | G19: 14827.51405 | H19: 15657.85484 | I19: 16534.69471 | J19: 17460.63762 | K19: 18438.43332 | L19: 19470.98559 | M19: 20561.36078 | N19: 21712.79698 | O19: 22928.71362 | P19: 24212.72158 | Q19: 25568.63399 | R19: 27000.47749 | S19: 28512.50423 | T19: 30109.20447 | U19: 31795.31992 | V19: 33575.85783 | W19: 35456.10587 | X19: 37441.6478 | Y19: 39538.38007 | Z19: 41752.52936
C21: Treatment costs | F21: =F16*cost_treat/Tsh_USD -> 0 | G21: =G16*cost_treat/Tsh_USD -> 12574.9325 | H21: 13279.12872 | I21: 14022.75993 | J21: 14808.03449 | K21: 15637.28442 | L21: 16512.97234 | M21: 17437.6988 | N21: 18414.20993 | O21: 19445.40568 | P21: 20534.3484 | Q21: 21684.27191 | R21: 22898.59114 | S21: 24180.91224 | T21: 25535.04333 | U21: 26965.00576 | V21: 28475.04608 | W21: 30069.64866 | X21: 31753.54898 | Y21: 33531.74773 | Z21: 35409.5256
C23: Days spent treating for self or others | F23: =F16*sickdays -> 0 | G23: 4758.192201 | H23: 5024.650965 | I23: 5306.031419 | J23: 5603.169178 | K23: 5916.946652 | L23: 6248.295665 | M23: 6598.200222 | N23: 6967.699434 | O23: 7357.890603 | P23: 7769.932476 | Q23: 8205.048695 | R23: 8664.531422 | S23: 9149.745182 | T23: 9662.130912 | U23: 10203.21024 | V23: 10774.59002 | W23: 11377.96706 | X23: 12015.13321 | Y23: 12687.98067 | Z23: 13398.50759
C24: Opportunity cost of treatment | F24: =F23*wage/Tsh_USD*employ -> 0 | G24: 66379.83176 | H24: 70097.10234 | I24: 74022.54007 | J24: 78167.80232 | K24: 82545.19925 | L24: 87167.7304 | M24: 92049.12331 | N24: 97203.87421 | O24: 102647.2912 | P24: 108395.5395 | Q24: 114465.6897 | R24: 120875.7683 | S24: 127644.8113 | T24: 134792.9208 | U24: 142341.3243 | V24: 150312.4385 | W24: 158729.935 | X24: 167618.8114 | Y24: 177005.4648 | Z24: 186917.7709
C26: Children stunted as a result of diarrhea | F26: =F17*stunt -> 0 | G26: 8112.673707 | H26: 8566.983435 | I26: 9046.734507 | J26: 9553.35164 | K26: 10088.33933 | L26: 10653.28633 | M26: 11249.87037 | N26: 11879.86311 | O26: 12545.13544 | P26: 13247.66303 | Q26: 13989.53216 | R26: 14772.94596 | S26: 15600.23093 | T26: 16473.84387 | U26: 17396.37912 | V26: 18370.57635 | W26: 19399.32863 | X26: 20485.69103 | Y26: 21632.88973 | Z26: 22844.33155
C29: With Project
C31: Cases of diarrheal disease | F31: =SUM(F32:F34) -> 0 | G31: =SUM(G32:G34) -> 34479.65363 | H31: 36410.51424 | I31: 38449.50303 | J31: 40602.6752 | K31: 42876.42502 | L31: 42711.77954 | M31: 42394.23331 | N31: 41907.17776 | O31: 44253.97971 | P31: 46732.20258 | Q31: 49349.20592 | R31: 52112.76145 | S31: 55031.07609 | T31: 58112.81635 | U31: 61367.13407 | V31: 64803.69358 | W31: 68432.70042 | X31: 72264.93164 | Y31: 76311.76781 | Z31: 80585.22681
D32: Age < 5 | F32: =F9*diarU5*(1-diarred*F$7) -> 0 | G32: 12907.76777 | H32: 13630.60277 | I32: 14393.91652 | J32: 15199.97585 | K32: 16051.17449 | L32: 15989.53798 | M32: 15870.6617 | N32: 15688.32808 | O32: 16566.87446 | P32: 17494.61943 | Q32: 18474.31811 | R32: 19508.87993 | S32: 20601.3772 | T32: 21755.05433 | U32: 22973.33737 | V32: 24259.84426 | W32: 25618.39554 | X32: 27053.02569 | Y32: 28567.99513 | Z32: 30167.80286
D33: Age 5-18 | F33: =F10*diar518*(1-diarred*F$7) -> 0 | G33: 6744.37181 | H33: 7122.056631 | I33: 7520.891802 | J33: 7942.061743 | K33: 8386.817201 | L33: 8354.611823 | M33: 8292.498384 | N33: 8197.228177 | O33: 8656.272955 | P33: 9141.02424 | Q33: 9652.921597 | R33: 10193.48521 | S33: 10764.32038 | T33: 11367.12232 | U33: 12003.68117 | V33: 12675.88732 | W33: 13385.737 | X33: 14135.33828 | Y33: 14926.91722 | Z33: 15762.82458
D34: Age > 18 | F34: =F11*diar18*(1-diarred*F$7) -> 0 | G34: 14827.51405 | H34: 15657.85484 | I34: 16534.69471 | J34: 17460.63762 | K34: 18438.43332 | L34: 18367.62974 | M34: 18231.07323 | N34: 18021.6215 | O34: 19030.8323 | P34: 20096.55891 | Q34: 21221.96621 | R34: 22410.39632 | S34: 23665.37851 | T34: 24990.63971 | U34: 26390.11553 | V34: 27867.962 | W34: 29428.56787 | X34: 31076.56767 | Y34: 32816.85546 | Z34: 34654.59937
C36: Cases of diarrheal disease averted | F36: =SUM(F37:F39) -> 0 | G36: 0 | H36: 0 | I36: 0 | J36: 0 | K36: 0 | L36: 2565.725273 | M36: 5418.811776 | N36: 8583.397854 | O36: 9064.068134 | P36: 9571.655949 | Q36: 10107.66868 | R36: 10673.69813 | S36: 11271.42522 | T36: 11902.62504 | U36: 12569.17204 | V36: 13273.04567 | W36: 14016.33623 | X36: 14801.25106 | Y36: 15630.12112 | Z36: 16505.4079
D37: Age < 5 | F37: =F17-F32 -> 0 | G37: 0 | H37: 0 | I37: 0 | J37: 0 | K37: 0 | L37: 960.5022817 | M37: 2028.580819 | N37: 3213.272017 | O37: 3393.21525 | P37: 3583.235304 | Q37: 3783.896481 | R37: 3995.794684 | S37: 4219.559186 | T37: 4455.854501 | U37: 4705.382353 | V37: 4968.883765 | W37: 5247.141255 | X37: 5540.981166 | Y37: 5851.276111 | Z37: 6178.947573
D38: Age 5-18 | F38: =F18-F33 -> 0 | G38: 0 | H38: 0 | I38: 0 | J38: 0 | K38: 0 | L38: 501.8671413 | M38: 1059.943402 | N38: 1678.950349 | O38: 1772.971569 | P38: 1872.257977 | Q38: 1977.104424 | R38: 2087.822271 | S38: 2204.740318 | T38: 2328.205776 | U38: 2458.5853 | V38: 2596.266077 | W38: 2741.656977 | X38: 2895.189768 | Y38: 3057.320395 | Z38: 3228.530337
D39: Age > 18 | F39: =F19-F34 -> 0 | G39: 0 | H39: 0 | I39: 0 | J39: 0 | K39: 0 | L39: 1103.35585 | M39: 2330.287555 | N39: 3691.175487 | O39: 3897.881315 | P39: 4116.162668 | Q39: 4346.667778 | R39: 4590.081173 | S39: 4847.125719 | T39: 5118.564759 | U39: 5405.204386 | V39: 5707.895831 | W39: 6027.537998 | X39: 6365.080126 | Y39: 6721.524613 | Z39: 7097.929991
C41: Treatment costs | F41: =F31*cost_treat/Tsh_USD -> 0 | G41: 12574.9325 | H41: 13279.12872 | I41: 14022.75993 | J41: 14808.03449 | K41: 15637.28442 | L41: 15577.23725 | M41: 15461.42627 | N41: 15283.79424 | O41: 16139.68672 | P41: 17043.50917 | Q41: 17997.94569 | R41: 19005.83065 | S41: 20070.15716 | T41: 21194.08596 | U41: 22380.95478 | V41: 23634.28825 | W41: 24957.80839 | X41: 26355.44566 | Y41: 27831.35061 | Z41: 29389.90625
C43: Total treatment cost savings | F43: =F21-F41 -> 0 | G43: 0 | H43: 0 | I43: 0 | J43: 0 | K43: 0 | L43: 935.7350995 | M43: 1976.27253 | N43: 3130.415688 | O43: 3305.718966 | P43: 3490.839229 | Q43: 3686.326225 | R43: 3892.760494 | S43: 4110.755082 | T43: 4340.957366 | U43: 4584.050979 | V43: 4840.757833 | W43: 5111.840272 | X43: 5398.103327 | Y43: 5700.397114 | Z43: 6019.619352
C45: Days spent treating for self or others | F45: =F31*sickdays -> 0 | G45: 4758.192201 | H45: 5024.650965 | I45: 5306.031419 | J45: 5603.169178 | K45: 5916.946652 | L45: 5894.225577 | M45: 5850.404197 | N45: 5783.19053 | O45: 6107.0492 | P45: 6449.043955 | Q45: 6810.190417 | R45: 7191.56108 | S45: 7594.288501 | T45: 8019.568657 | U45: 8468.664502 | V45: 8942.909714 | W45: 9443.712658 | X45: 9972.560566 | Y45: 10531.02396 | Z45: 11120.7613
C46: Opportunity cost of treatment | F46: =F45*wage/Tsh_USD*employ -> 0 | G46: 66379.83176 | H46: 70097.10234 | I46: 74022.54007 | J46: 78167.80232 | K46: 82545.19925 | L46: 82228.22568 | M46: 81616.88933 | N46: 80679.2156 | O46: 85197.25167 | P46: 89968.29776 | Q46: 95006.52244 | R46: 100326.8877 | S46: 105945.1934 | T46: 111878.1242 | U46: 118143.2992 | V46: 124759.3239 | W46: 131745.8461 | X46: 139123.6135 | Y46: 146914.5358 | Z46: 155141.7498
C48: Opportunity cost savings | F48: =F24-F46 -> 0 | G48: 0 | H48: 0 | I48: 0 | J48: 0 | K48: 0 | L48: 4939.504723 | M48: 10432.23397 | N48: 16524.65862 | O48: 17450.0395 | P48: 18427.24171 | Q48: 19459.16725 | R48: 20548.88061 | S48: 21699.61793 | T48: 22914.79653 | U48: 24198.02514 | V48: 25553.11454 | W48: 26984.08896 | X48: 28495.19794 | Y48: 30090.92902 | Z48: 31776.02105
C50: Children stunted as a result of diarrhea | F50: =F32*stunt -> 0 | G50: 8112.673707 | H50: 8566.983435 | I50: 9046.734507 | J50: 9553.35164 | K50: 10088.33933 | L50: 10049.60011 | M50: 9974.885061 | N50: 9860.286381 | O50: 10412.46242 | P50: 10995.56031 | Q50: 11611.31169 | R50: 12261.54515 | S50: 12948.19167 | T50: 13673.29041 | U50: 14438.99467 | V50: 15247.57837 | W50: 16101.44276 | X50: 17003.12356 | Y50: 17955.29848 | Z50: 18960.79519
D51: Stunting cases averted | F51: =F26-F50 -> 0 | G51: 0 | H51: 0 | I51: 0 | J51: 0 | K51: 0 | L51: 603.6862256 | M51: 1274.985308 | N51: 2019.576729 | O51: 2132.673025 | P51: 2252.102715 | Q51: 2378.220467 | R51: 2511.400813 | S51: 2652.039259 | T51: 2800.553457 | U51: 2957.384451 | V51: 3122.99798 | W51: 3297.885867 | X51: 3482.567475 | Y51: 3677.591254 | Z51: 3883.536364
C53: Present value of lifetime income gains due to decreased stunting | F53: =F51*$H58 -> 0 | G53: 0 | H53: 0 | I53: 0 | J53: 0 | K53: 0 | L53: 1334982.63 | M53: 2819483.314 | N53: 4466061.57 | O53: 4716161.018 | P53: 4980266.035 | Q53: 5259160.933 | R53: 5553673.945 | S53: 5864679.686 | T53: 6193101.748 | U53: 6539915.446 | V53: 6906150.711 | W53: 7292895.151 | X53: 7701297.279 | Y53: 8132569.927 | Z53: 8587993.843
D57: =J58 -> 1 | E57: Present value of lifetime earnings per child, age < 5 | F57: Annual wages, stunted child | G57: Annual wages, non-stunted child | H57: Increased wages | K57: Notes
E58: Present value/child (US$) | F58: =NPV(0.1,F59:F118) -> 13461.08099 | G58: =NPV(0.1,G59:G118) -> 15672.46593 | H58: 2211.384943 | J58: 1 | K58: Assumes average working age of 15-64, which matches the standard definition in dependency ratio statistics.
E59: Age 5 | F59: 0 | G59: 0 | H59: =G59-F59 -> 0 | J59: 2 | K59: Annual wages assume 250 working days.
E60: Age 6 | F60: 0 | G60: 0 | H60: =G60-F60 -> 0
E61: Age 7 | F61: 0 | G61: 0 | H61: 0
E62: Age 8 | F62: 0 | G62: 0 | H62: 0
E63: Age 9 | F63: 0 | G63: 0 | H63: 0
E64: Age 10 | F64: 0 | G64: 0 | H64: 0
E65: Age 11 | F65: 0 | G65: 0 | H65: 0
E66: Age 12 | F66: 0 | G66: 0 | H66: 0
E67: Age 13 | F67: 0 | G67: 0 | H67: 0
E68: Age 14 | F68: 0 | G68: 0 | H68: 0
D69: =J59 -> 2 | E69: Age 15 | F69: =(wage-(wage*rtnedu*stntyrs))*250/Tsh_USD -> 3521.455431 | G69: =wage*250/Tsh_USD -> 4099.959752 | H69: 578.5043211
E70: Age 16 | F70: 3521.455431 | G70: 4099.959752 | H70: 578.5043211
E71: Age 17 | F71: 3521.455431 | G71: 4099.959752 | H71: 578.5043211
E72: Age 18 | F72: 3521.455431 | G72: 4099.959752 | H72: 578.5043211
E73: Age 19 | F73: 3521.455431 | G73: 4099.959752 | H73: 578.5043211
E74: Age 20 | F74: 3521.455431 | G74: 4099.959752 | H74: 578.5043211
E75: Age 21 | F75: 3521.455431 | G75: 4099.959752 | H75: 578.5043211
E76: Age 22 | F76: 3521.455431 | G76: 4099.959752 | H76: 578.5043211
E77: Age 23 | F77: 3521.455431 | G77: 4099.959752 | H77: 578.5043211
E78: Age 24 | F78: 3521.455431 | G78: 4099.959752 | H78: 578.5043211
E79: Age 25 | F79: 3521.455431 | G79: 4099.959752 | H79: 578.5043211
E80: Age 26 | F80: 3521.455431 | G80: 4099.959752 | H80: 578.5043211
E81: Age 27 | F81: 3521.455431 | G81: 4099.959752 | H81: 578.5043211
E82: Age 28 | F82: 3521.455431 | G82: 4099.959752 | H82: 578.5043211
E83: Age 29 | F83: 3521.455431 | G83: 4099.959752 | H83: 578.5043211
E84: Age 30 | F84: 3521.455431 | G84: 4099.959752 | H84: 578.5043211
E85: Age 31 | F85: 3521.455431 | G85: 4099.959752 | H85: 578.5043211
E86: Age 32 | F86: 3521.455431 | G86: 4099.959752 | H86: 578.5043211
E87: Age 33 | F87: 3521.455431 | G87: 4099.959752 | H87: 578.5043211
E88: Age 34 | F88: 3521.455431 | G88: 4099.959752 | H88: 578.5043211
E89: Age 35 | F89: 3521.455431 | G89: 4099.959752 | H89: 578.5043211
E90: Age 36 | F90: 3521.455431 | G90: 4099.959752 | H90: 578.5043211
E91: Age 37 | F91: 3521.455431 | G91: 4099.959752 | H91: 578.5043211
E92: Age 38 | F92: 3521.455431 | G92: 4099.959752 | H92: 578.5043211
E93: Age 39 | F93: 3521.455431 | G93: 4099.959752 | H93: 578.5043211
E94: Age 40 | F94: 3521.455431 | G94: 4099.959752 | H94: 578.5043211
E95: Age 41 | F95: 3521.455431 | G95: 4099.959752 | H95: 578.5043211
E96: Age 42 | F96: 3521.455431 | G96: 4099.959752 | H96: 578.5043211
E97: Age 43 | F97: 3521.455431 | G97: 4099.959752 | H97: 578.5043211
E98: Age 44 | F98: 3521.455431 | G98: 4099.959752 | H98: 578.5043211
E99: Age 45 | F99: 3521.455431 | G99: 4099.959752 | H99: 578.5043211
E100: Age 46 | F100: 3521.455431 | G100: 4099.959752 | H100: 578.5043211
E101: Age 47 | F101: =(wage-(wage*rtnedu*stntyrs))*250/Tsh_USD -> 3521.455431 | G101: =wage*250/Tsh_USD -> 4099.959752 | H101: 578.5043211
E102: Age 48 | F102: 3521.455431 | G102: 4099.959752 | H102: 578.5043211
E103: Age 49 | F103: 3521.455431 | G103: 4099.959752 | H103: 578.5043211
E104: Age 50 | F104: 3521.455431 | G104: 4099.959752 | H104: 578.5043211
E105: Age 51 | F105: 3521.455431 | G105: 4099.959752 | H105: 578.5043211
E106: Age 52 | F106: 3521.455431 | G106: 4099.959752 | H106: 578.5043211
E107: Age 53 | F107: 3521.455431 | G107: 4099.959752 | H107: 578.5043211
E108: Age 54 | F108: 3521.455431 | G108: 4099.959752 | H108: 578.5043211
E109: Age 55 | F109: 3521.455431 | G109: 4099.959752 | H109: 578.5043211
E110: Age 56 | F110: 3521.455431 | G110: 4099.959752 | H110: 578.5043211
E111: Age 57 | F111: 3521.455431 | G111: 4099.959752 | H111: 578.5043211
E112: Age 58 | F112: 3521.455431 | G112: 4099.959752 | H112: 578.5043211
E113: Age 59 | F113: 3521.455431 | G113: 4099.959752 | H113: 578.5043211
E114: Age 60 | F114: 3521.455431 | G114: 4099.959752 | H114: 578.5043211
E115: Age 61 | F115: 3521.455431 | G115: 4099.959752 | H115: 578.5043211
E116: Age 62 | F116: 3521.455431 | G116: 4099.959752 | H116: 578.5043211
E117: Age 63 | F117: 3521.455431 | G117: 4099.959752 | H117: 578.5043211
E118: Age 64 | F118: 3521.455431 | G118: 4099.959752 | H118: 578.5043211

Sheet Commercial
B1: Tanzania: Lower Ruvu Plant Expansion Activity | J1: Last updated: 2/8/2016
B2: Water Flow & Commercial Consumption
E4: =IF('ERR & Sensitivity Analysis'!$I$10="N","Note: Current calculations are based on user input and are not the original MCC estimates.",IF('ERR & Sensitivity Analysis'!$I$13="N","Note: Current calculations are based on user input and are not the original MCC estimates.","")) -> 
E5: All figures in 2014 US$ unless specified | F5: 2008 | G5: 2009 | H5: 2010 | I5: 2011 | J5: 2012 | K5: 2013 | L5: 2014 | M5: 2015 | N5: 2016 | O5: 2017 | P5: 2018 | Q5: 2019 | R5: 2020 | S5: 2021 | T5: 2022 | U5: 2023 | V5: 2024 | W5: 2025 | X5: 2026 | Y5: 2027 | Z5: 2028
E6: Year | F6: 0 | G6: 1 | H6: 2 | I6: 3 | J6: 4 | K6: 5 | L6: 6 | M6: 7 | N6: 8 | O6: 9 | P6: 10 | Q6: 11 | R6: 12 | S6: 13 | T6: 14 | U6: 15 | V6: 16 | W6: 17 | X6: 18 | Y6: 19 | Z6: 20
C7: Without Project
C9: Water produced by DAWASCO (m3) | G9: =Savings!G13 -> 52327064.3 | H9: =Savings!H13 -> 52327064.3 | I9: =Savings!I13 -> 52327064.3 | J9: =Savings!J13 -> 52327064.3 | K9: =Savings!K13 -> 52327064.3 | L9: =Savings!L13 -> 52327064.3 | M9: =Savings!M13 -> 52327064.3 | N9: =Savings!N13 -> 52327064.3 | O9: =Savings!O13 -> 52327064.3 | P9: =Savings!P13 -> 52327064.3 | Q9: =Savings!Q13 -> 52327064.3 | R9: =Savings!R13 -> 52327064.3 | S9: =Savings!S13 -> 52327064.3 | T9: =Savings!T13 -> 52327064.3 | U9: =Savings!U13 -> 52327064.3 | V9: =Savings!V13 -> 52327064.3 | W9: =Savings!W13 -> 52327064.3 | X9: =Savings!X13 -> 52327064.3 | Y9: =Savings!Y13 -> 52327064.3 | Z9: =Savings!Z13 -> 52327064.3
D10: Lower Ruvu | G10: =cap_wop*365*(1-(nrw*techloss)) -> 36529200 | H10: 36529200 | I10: 36529200 | J10: 36529200 | K10: 36529200 | L10: 36529200 | M10: 36529200 | N10: 36529200 | O10: 36529200 | P10: 36529200 | Q10: 36529200 | R10: 36529200 | S10: 36529200 | T10: 36529200 | U10: 36529200 | V10: 36529200 | W10: 36529200 | X10: 36529200 | Y10: 36529200 | Z10: 36529200
D11: Other sources | G11: =G9-G10 -> 15797864.3 | H11: =H9-H10 -> 15797864.3 | I11: 15797864.3 | J11: 15797864.3 | K11: 15797864.3 | L11: 15797864.3 | M11: 15797864.3 | N11: 15797864.3 | O11: 15797864.3 | P11: 15797864.3 | Q11: 15797864.3 | R11: 15797864.3 | S11: 15797864.3 | T11: 15797864.3 | U11: 15797864.3 | V11: 15797864.3 | W11: 15797864.3 | X11: 15797864.3 | Y11: 15797864.3 | Z11: 15797864.3
C13: Volume of water consumed from DAWASCO sources (m3) | G13: =G9 -> 52327064.3 | H13: =H9 -> 52327064.3 | I13: 52327064.3 | J13: 52327064.3 | K13: 52327064.3 | L13: 52327064.3 | M13: 52327064.3 | N13: 52327064.3 | O13: 52327064.3 | P13: 52327064.3 | Q13: 52327064.3 | R13: 52327064.3 | S13: 52327064.3 | T13: 52327064.3 | U13: 52327064.3 | V13: 52327064.3 | W13: 52327064.3 | X13: 52327064.3 | Y13: 52327064.3 | Z13: 52327064.3
D14: Domestic | G14: =Savings!G26 -> 14924606.48 | H14: =Savings!H26 -> 15760384.45 | I14: =Savings!I26 -> 16642965.98 | J14: =Savings!J26 -> 17574972.07 | K14: =Savings!K26 -> 18559170.51 | L14: =Savings!L26 -> 19598484.06 | M14: =Savings!M26 -> 20695999.16 | N14: =Savings!N26 -> 21854975.12 | O14: =Savings!O26 -> 23078853.72 | P14: =Savings!P26 -> 24371269.53 | Q14: =Savings!Q26 -> 25736060.62 | R14: =Savings!R26 -> 27177280.02 | S14: =Savings!S26 -> 28699207.7 | T14: =Savings!T26 -> 30306363.33 | U14: =Savings!U26 -> 32003519.68 | V14: =Savings!V26 -> 33795716.78 | W14: =Savings!W26 -> 35688276.92 | X14: =Savings!X26 -> 36529200 | Y14: =Savings!Y26 -> 36529200 | Z14: =Savings!Z26 -> 36529200
D15: Commercial and institutional | G15: =G13-G14 -> 37402457.82 | H15: =H13-H14 -> 36566679.85 | I15: 35684098.32 | J15: 34752092.23 | K15: 33767893.79 | L15: 32728580.24 | M15: 31631065.14 | N15: 30472089.18 | O15: 29248210.58 | P15: 27955794.77 | Q15: 26591003.68 | R15: 25149784.28 | S15: 23627856.6 | T15: 22020700.97 | U15: 20323544.62 | V15: 18531347.52 | W15: 16638787.38 | X15: 15797864.3 | Y15: 15797864.3 | Z15: 15797864.3
C17: Cost of water production and delivery (US$) | G17: =G10*cost_water -> 32876280 | H17: 32876280 | I17: 32876280 | J17: 32876280 | K17: 32876280 | L17: 32876280 | M17: 32876280 | N17: 32876280 | O17: 32876280 | P17: 32876280 | Q17: 32876280 | R17: 32876280 | S17: 32876280 | T17: 32876280 | U17: 32876280 | V17: 32876280 | W17: 32876280 | X17: 32876280 | Y17: 32876280 | Z17: 32876280
C19: With Project
C20: Benefits? | F20: =IF(F5>year,1,0) -> 0 | G20: 0 | H20: 0 | I20: 0 | J20: 0 | K20: 0 | L20: 0 | M20: 0 | N20: 1 | O20: 1 | P20: 1 | Q20: 1 | R20: 1 | S20: 1 | T20: 1 | U20: 1 | V20: 1 | W20: 1 | X20: 1 | Y20: 1 | Z20: 1
C22: Water produced by DAWASCO (m3) | G22: =SUM(G23:G24) -> 52327064.3 | H22: =SUM(H23:H24) -> 52327064.3 | I22: 52327064.3 | J22: 52327064.3 | K22: 52327064.3 | L22: 52327064.3 | M22: 52327064.3 | N22: 70591664.3 | O22: 70591664.3 | P22: 70591664.3 | Q22: 70591664.3 | R22: 70591664.3 | S22: 70591664.3 | T22: 70591664.3 | U22: 70591664.3 | V22: 70591664.3 | W22: 70591664.3 | X22: 70591664.3 | Y22: 70591664.3 | Z22: 70591664.3
D23: Lower Ruvu | G23: =IF(G20=0,G10,(cap_wp*365*(1-(nrw*techloss)*G20)+(G10*(1-G20)))) -> 36529200 | H23: 36529200 | I23: 36529200 | J23: 36529200 | K23: 36529200 | L23: 36529200 | M23: 36529200 | N23: 54793800 | O23: 54793800 | P23: 54793800 | Q23: 54793800 | R23: 54793800 | S23: 54793800 | T23: 54793800 | U23: 54793800 | V23: 54793800 | W23: 54793800 | X23: 54793800 | Y23: 54793800 | Z23: 54793800
D24: Other sources | G24: =G11 -> 15797864.3 | H24: =H11 -> 15797864.3 | I24: =I11 -> 15797864.3 | J24: 15797864.3 | K24: 15797864.3 | L24: 15797864.3 | M24: 15797864.3 | N24: 15797864.3 | O24: 15797864.3 | P24: 15797864.3 | Q24: 15797864.3 | R24: 15797864.3 | S24: 15797864.3 | T24: 15797864.3 | U24: 15797864.3 | V24: 15797864.3 | W24: 15797864.3 | X24: 15797864.3 | Y24: 15797864.3 | Z24: 15797864.3
C26: Volume of water consumed from DAWASCO sources (m3) | G26: =G22 -> 52327064.3 | H26: =H22 -> 52327064.3 | I26: 52327064.3 | J26: 52327064.3 | K26: 52327064.3 | L26: 52327064.3 | M26: 52327064.3 | N26: 70591664.3 | O26: 70591664.3 | P26: 70591664.3 | Q26: 70591664.3 | R26: 70591664.3 | S26: 70591664.3 | T26: 70591664.3 | U26: 70591664.3 | V26: 70591664.3 | W26: 70591664.3 | X26: 70591664.3 | Y26: 70591664.3 | Z26: 70591664.3
D27: Domestic | G27: =Savings!G49 -> 14924606.48 | H27: =Savings!H49 -> 15760384.45 | I27: =Savings!I49 -> 16642965.98 | J27: =Savings!J49 -> 17574972.07 | K27: =Savings!K49 -> 18559170.51 | L27: =Savings!L49 -> 19598484.06 | M27: =Savings!M49 -> 20695999.16 | N27: =Savings!N49 -> 21854975.12 | O27: =Savings!O49 -> 23078853.72 | P27: =Savings!P49 -> 24371269.53 | Q27: =Savings!Q49 -> 25736060.62 | R27: =Savings!R49 -> 27177280.02 | S27: =Savings!S49 -> 28699207.7 | T27: =Savings!T49 -> 30306363.33 | U27: =Savings!U49 -> 32003519.68 | V27: =Savings!V49 -> 33795716.78 | W27: =Savings!W49 -> 35688276.92 | X27: =Savings!X49 -> 37686820.43 | Y27: =Savings!Y49 -> 39797282.37 | Z27: =Savings!Z49 -> 42025930.18
D28: Commercial and institutional | G28: =G26-G27 -> 37402457.82 | H28: =H26-H27 -> 36566679.85 | I28: 35684098.32 | J28: 34752092.23 | K28: 33767893.79 | L28: 32728580.24 | M28: 31631065.14 | N28: 48736689.18 | O28: 47512810.58 | P28: 46220394.77 | Q28: 44855603.68 | R28: 43414384.28 | S28: 41892456.6 | T28: 40285300.97 | U28: 38588144.62 | V28: 36795947.52 | W28: 34903387.38 | X28: 32904843.87 | Y28: 30794381.93 | Z28: 28565734.12
C30: Additional volume of water available to enterprises (m3) | G30: =G28-G15 -> 0 | H30: =H28-H15 -> 0 | I30: 0 | J30: 0 | K30: 0 | L30: 0 | M30: 0 | N30: 18264600 | O30: 18264600 | P30: 18264600 | Q30: 18264600 | R30: 18264600 | S30: 18264600 | T30: 18264600 | U30: 18264600 | V30: 18264600 | W30: 18264600 | X30: 17106979.57 | Y30: 14996517.63 | Z30: 12767869.82
C32: Value of additionalwater available to enterprises (US$) | G32: =commtariff*G30/Tsh_USD -> 0 | H32: 0 | I32: 0 | J32: 0 | K32: 0 | L32: =commtariff*L30/Tsh_USD -> 0 | M32: 0 | N32: 12180169.78 | O32: 12180169.78 | P32: 12180169.78 | Q32: 12180169.78 | R32: 12180169.78 | S32: 12180169.78 | T32: 12180169.78 | U32: 12180169.78 | V32: 12180169.78 | W32: 12180169.78 | X32: 11408183.9 | Y32: 10000773.68 | Z32: 8514548.477
C34: Cost of water production and delivery (US$) | G34: =G23*cost_water -> 32876280 | H34: 32876280 | I34: 32876280 | J34: 32876280 | K34: 32876280 | L34: 32876280 | M34: 32876280 | N34: 49314420 | O34: 49314420 | P34: 49314420 | Q34: 49314420 | R34: 49314420 | S34: 49314420 | T34: 49314420 | U34: 49314420 | V34: 49314420 | W34: 49314420 | X34: 49314420 | Y34: 49314420 | Z34: 49314420
C36: Increased water production and delivery costs | G36: =G34-G17 -> 0 | H36: 0 | I36: 0 | J36: 0 | K36: 0 | L36: 0 | M36: 0 | N36: 16438140 | O36: 16438140 | P36: 16438140 | Q36: 16438140 | R36: 16438140 | S36: 16438140 | T36: 16438140 | U36: 16438140 | V36: 16438140 | W36: 16438140 | X36: 16438140 | Y36: 16438140 | Z36: 16438140

Sheet Beneficiaries
B1: Tanzania: Lower Ruvu Plant Expansion Activity | R1: Last updated: 2/8/2016
B2: Beneficiary Estimates
D4: =IF('ERR & Sensitivity Analysis'!$I$10="N","Note: Current calculations are based on user input and are not the original MCC estimates.",IF('ERR & Sensitivity Analysis'!$I$13="N","Note: Current calculations are based on user input and are not the original MCC estimates.","")) -> 
L5: 2008 | M5: 2009 | N5: 2010 | O5: 2011 | P5: 2012 | Q5: 2013 | R5: 2014 | S5: 2015 | T5: 2016 | U5: 2017 | V5: 2018 | W5: 2019 | X5: 2020 | Y5: 2021 | Z5: 2022 | AA5: 2023 | AB5: 2024 | AC5: 2025 | AD5: 2026 | AE5: 2027 | AF5: 2028
E6: Year | L6: 0 | M6: 1 | N6: 2 | O6: 3 | P6: 4 | Q6: 5 | R6: 6 | S6: 7 | T6: 8 | U6: 9 | V6: 10 | W6: 11 | X6: 12 | Y6: 13 | Z6: 14 | AA6: 15 | AB6: 16 | AC6: 17 | AD6: 18 | AE6: 19 | AF6: 20
C7: Tanzania Population | P7: 2012 Census
C8: Region | E8: Growth rate | F8: 2002 Census | G8: 2003 | H8: 2004 | I8: 2005 | J8: 2006 | K8: 2007
B9: =C40 -> 1 | C9: Tanzania Total | E9: 0.027 | F9: 34443603 | G9: =F9*(1+$E9) -> 35373580.28 | H9: 36328666.95 | I9: 37309540.96 | J9: 38316898.56 | K9: =J9*(1+$E9) -> 39351454.82 | L9: =K9*(1+$E9) -> 40413944.1 | M9: 41505120.59 | N9: 42625758.85 | O9: 43776654.34 | P9: 44928923 | Q9: =P9*(1+$E9) -> 46142003.92 | R9: =Q9*(1+$E9) -> 47387838.03 | S9: 48667309.65 | T9: 49981327.01 | U9: 51330822.84 | V9: 52716755.06 | W9: 54140107.45 | X9: 55601890.35 | Y9: 57103141.39 | Z9: 58644926.2 | AA9: 60228339.21 | AB9: 61854504.37 | AC9: 63524575.99 | AD9: 65239739.54 | AE9: 67001212.51 | AF9: 68810245.25
B10: =C40 -> 1 | C10: Dar es Salaam Region | E10: 0.056 | L10: =M10/(1+$E10) -> 3509804.325 | M10: 3706353.367 | N10: 3913909.155 | O10: =P10/(1+$E10) -> 4133088.068 | P10: 4364541 | Q10: 4608955.296 | R10: =Q10*(1+$E10) -> 4867056.793 | S10: =R10*(1+$E10) -> 5139611.973 | T10: =S10*(1+$E10) -> 5427430.243 | U10: =T10*(1+$E10) -> 5731366.337 | V10: =U10*(1+$E10) -> 6052322.852 | W10: =V10*(1+$E10) -> 6391252.932 | X10: =W10*(1+$E10) -> 6749163.096 | Y10: =X10*(1+$E10) -> 7127116.229 | Z10: =Y10*(1+$E10) -> 7526234.738 | AA10: =Z10*(1+$E10) -> 7947703.883 | AB10: =AA10*(1+$E10) -> 8392775.301 | AC10: =AB10*(1+$E10) -> 8862770.718 | AD10: =AC10*(1+$E10) -> 9359085.878 | AE10: =AD10*(1+$E10) -> 9883194.687 | AF10: =AE10*(1+$E10) -> 10436653.59
B11: =C41 -> 2 | D11: Kinondoni Municipal Council | E11: 0.056 | L11: =M11/(1+$E11) -> 1427429.518 | M11: 1507365.571 | N11: 1591778.043 | O11: =P11/(1+$E11) -> 1680917.614 | P11: 1775049 | Q11: =P11*(1+$E11) -> 1874451.744 | R11: 1979421.042 | S11: 2090268.62 | T11: 2207323.663 | U11: 2330933.788 | V11: 2461466.08 | W11: 2599308.18 | X11: 2744869.439 | Y11: 2898582.127 | Z11: 3060902.726 | AA11: 3232313.279 | AB11: 3413322.822 | AC11: 3604468.901 | AD11: 3806319.159 | AE11: 4019473.032 | AF11: 4244563.522
D12: Ilala Municipal Council | E12: 0.056 | L12: =M12/(1+$E12) -> 981570.7463 | M12: 1036538.708 | N12: 1094584.876 | O12: =P12/(1+$E12) -> 1155881.629 | P12: 1220611 | Q12: =P12*(1+$E12) -> 1288965.216 | R12: 1361147.268 | S12: 1437371.515 | T12: 1517864.32 | U12: 1602864.722 | V12: 1692625.146 | W12: 1787412.154 | X12: 1887507.235 | Y12: 1993207.64 | Z12: 2104827.268 | AA12: 2222697.595 | AB12: 2347168.661 | AC12: 2478610.106 | AD12: 2617412.271 | AE12: 2763987.359 | AF12: 2918770.651
D13: Temeke Municipal Council | E13: 0.056 | L13: =M13/(1+$E13) -> 1100804.06 | M13: 1162449.088 | N13: 1227546.237 | O13: =P13/(1+$E13) -> 1296288.826 | P13: 1368881 | Q13: 1445538.336 | R13: 1526488.483 | S13: 1611971.838 | T13: 1702242.261 | U13: 1797567.827 | V13: 1898231.626 | W13: 2004532.597 | X13: 2116786.422 | Y13: 2235326.462 | Z13: 2360504.744 | AA13: 2492693.009 | AB13: 2632283.818 | AC13: 2779691.712 | AD13: 2935354.447 | AE13: 3099734.297 | AF13: 3273319.417
B15: =C42 -> 3 | C15: Population of area served by DAWASCO | L15: =M15/(1+$E11) -> 2300027.272 | M15: =N15/(1+$E11) -> 2428828.799 | N15: =O15/(1+$E11) -> 2564843.212 | O15: =P15/(1+$E11) -> 2708474.432 | P15: 2860149 | Q15: =P15*(1+$E11) -> 3020317.344 | R15: 3189455.115 | S15: 3368064.602 | T15: 3556676.219 | U15: 3755850.088 | V15: 3966177.693 | W15: 4188283.643 | X15: 4422827.527 | Y15: 4670505.869 | Z15: 4932054.198 | AA15: 5208249.233 | AB15: 5499911.19 | AC15: 5807906.216 | AD15: 6133148.964 | AE15: 6476605.306 | AF15: 6839295.204
D16: Age < 5 | E16: 0.146 | L16: =L$15*$E16 -> 335803.9817 | M16: =M$15*$E16 -> 354609.0047 | N16: 374467.1089 | O16: 395437.267 | P16: 417581.754 | Q16: 440966.3322 | R16: 465660.4468 | S16: 491737.4319 | T16: 519274.728 | U16: 548354.1128 | V16: 579061.9431 | W16: 611489.4119 | X16: 645732.819 | Y16: 681893.8569 | Z16: 720079.9129 | AA16: 760404.388 | AB16: 802987.0337 | AC16: 847954.3076 | AD16: 895439.7488 | AE16: 945584.3747 | AF16: 998537.0997
D17: Age 5-18 | E17: =0.413-E16 -> 0.267 | L17: =L$15*$E17 -> 614107.2816 | M17: 648497.2894 | N17: 684813.1376 | O17: 723162.6733 | P17: 763659.783 | Q17: 806424.7308 | R17: 851584.5158 | S17: 899273.2487 | T17: 949632.5506 | U17: 1002811.973 | V17: 1058969.444 | W17: 1118271.733 | X17: 1180894.95 | Y17: 1247025.067 | Z17: 1316858.471 | AA17: 1390602.545 | AB17: 1468476.288 | AC17: 1550710.96 | AD17: 1637550.774 | AE17: 1729253.617 | AF17: 1826091.819
D18: Age > 18 | E18: =1-SUM(E16:E17) -> 0.587 | L18: 1350116.009 | M18: 1425722.505 | N18: 1505562.965 | O18: 1589874.491 | P18: 1678907.463 | Q18: 1772926.281 | R18: 1872210.153 | S18: 1977053.921 | T18: 2087768.941 | U18: 2204684.001 | V18: 2328146.306 | W18: 2458522.499 | X18: 2596199.759 | Y18: 2741586.945 | Z18: 2895115.814 | AA18: 3057242.3 | AB18: 3228447.868 | AC18: 3409240.949 | AD18: 3600158.442 | AE18: 3801767.315 | AF18: 4014666.285
C20: Population of households using DAWASCO sources | L20: =L34*hhsize -> 0 | M20: 1262990.976 | N20: 1333718.47 | O20: 1408406.705 | P20: 1487277.48 | Q20: 1570565.019 | R20: 1658516.66 | S20: 1751393.593 | T20: 1849471.634 | U20: 1953042.046 | V20: 2062412.4 | W20: 2177907.495 | X20: 2299870.314 | Y20: 2428663.052 | Z20: 2564668.183 | AA20: 2708289.601 | AB20: 2859953.819 | AC20: 3020111.233 | AD20: 3189237.462 | AE20: 3367834.759 | AF20: 3556433.506
D21: Age < 5 | E21: =E16 -> 0.146 | L21: =L$20*$E21 -> 0 | M21: =M$20*$E21 -> 184396.6824 | N21: 194722.8967 | O21: 205627.3789 | P21: 217142.5121 | Q21: 229302.4928 | R21: 242143.4324 | S21: 255703.4646 | T21: 270022.8586 | U21: 285144.1387 | V21: 301112.2104 | W21: 317974.4942 | X21: 335781.0659 | Y21: 354584.8056 | Z21: 374441.5547 | AA21: 395410.2817 | AB21: 417553.2575 | AC21: 440936.2399 | AD21: 465628.6694 | AE21: 491703.8749 | AF21: 519239.2919
D22: Age 5-18 | E22: =E17 -> 0.267 | L22: =L$20*$E22 -> 0 | M22: 337218.5905 | N22: 356102.8315 | O22: 376044.5901 | P22: 397103.0872 | Q22: 419340.86 | R22: 442823.9482 | S22: 467622.0893 | T22: 493808.9263 | U22: 521462.2262 | V22: 550664.1108 | W22: 581501.301 | X22: 614065.3739 | Y22: 648453.0348 | Z22: 684766.4048 | AA22: 723113.3235 | AB22: 763607.6696 | AC22: 806369.6991 | AD22: 851526.4022 | AE22: 899211.8808 | AF22: 949567.7461
D23: Age > 18 | E23: 0.587 | L23: 0 | M23: 741375.7027 | N23: 782892.742 | O23: 826734.7356 | P23: 873031.8808 | Q23: 921921.6661 | R23: 973549.2794 | S23: 1028068.039 | T23: 1085639.849 | U23: 1146435.681 | V23: 1210636.079 | W23: 1278431.699 | X23: 1350023.874 | Y23: 1425625.211 | Z23: 1505460.223 | AA23: 1589765.996 | AB23: 1678792.892 | AC23: 1772805.293 | AD23: 1872082.39 | AE23: 1976919.004 | AF23: 2087626.468
C25: Households
B26: =C43 -> 4 | C26: Dar es Salaam Region | E26: =4364541/1095095 -> 3.985536415 | L26: =L10/$E26 -> 880635.3674 | M26: 929950.948 | N26: 982028.201 | O26: 1037021.78 | P26: 1095095 | Q26: 1156420.32 | R26: 1221179.858 | S26: 1289565.93 | T26: 1361781.622 | U26: 1438041.393 | V26: 1518571.711 | W26: 1603611.727 | X26: 1693413.983 | Y26: 1788245.166 | Z26: 1888386.896 | AA26: 1994136.562 | AB26: 2105808.209 | AC26: 2223733.469 | AD26: 2348262.543 | AE26: 2479765.246 | AF26: 2618632.1
D27: Kinondoni Municipal Council | E27: 4 | L27: =L11/$E27 -> 356857.3796 | M27: 376841.3928 | N27: 397944.5108 | O27: 420229.4034 | P27: 443762.25 | Q27: 468612.936 | R27: 494855.2604 | S27: 522567.155 | T27: 551830.9157 | U27: 582733.447 | V27: 615366.52 | W27: 649827.0451 | X27: 686217.3596 | Y27: 724645.5318 | Z27: 765225.6816 | AA27: 808078.3197 | AB27: 853330.7056 | AC27: 901117.2251 | AD27: 951579.7897 | AE27: 1004868.258 | AF27: 1061140.88
D28: Ilala Municipal Council | E28: 4 | L28: =L12/$E28 -> 245392.6866 | M28: 259134.677 | N28: 273646.2189 | O28: 288970.4072 | P28: 305152.75 | Q28: 322241.304 | R28: 340286.817 | S28: 359342.8788 | T28: 379466.08 | U28: 400716.1805 | V28: 423156.2866 | W28: 446853.0386 | X28: 471876.8088 | Y28: 498301.9101 | Z28: 526206.817 | AA28: 555674.3988 | AB28: 586792.1651 | AC28: 619652.5264 | AD28: 654353.0679 | AE28: 690996.8397 | AF28: 729692.6627
D29: Temeke Municipal Council | E29: 3.9 | L29: =L13/$E29 -> 282257.4513 | M29: 298063.8686 | N29: 314755.4453 | O29: 332381.7502 | P29: 350995.1282 | Q29: 370650.8554 | R29: 391407.3033 | S29: 413326.1123 | T29: 436472.3746 | U29: 460914.8275 | V29: 486726.0579 | W29: 513982.7171 | X29: 542765.7493 | Y29: 573160.6312 | Z29: 605257.6266 | AA29: 639152.0537 | AB29: 674944.5687 | AC29: 712741.4645 | AD29: 752654.9865 | AE29: 794803.6658 | AF29: 839312.6711
B31: =C44 -> 5 | C31: Households in area served by DAWASCO | E31: =hhsize -> 3.985536415 | L31: =L15/$E31 -> 577093.5284 | M31: =M15/$E31 -> 609410.766 | N31: 643537.7688 | O31: 679575.8839 | P31: 717632.1334 | Q31: 757819.5329 | R31: 800257.4267 | S31: 845071.8426 | T31: 892395.8658 | U31: 942370.0343 | V31: 995142.7562 | W31: 1050870.751 | X31: 1109719.513 | Y31: 1171863.805 | Z31: 1237488.178 | AA31: 1306787.516 | AB31: 1379967.617 | AC31: 1457245.804 | AD31: 1538851.569 | AE31: 1625027.257 | AF31: 1716028.783
C33: Beneficiaries
C34: Households using DAWASCO sources | M34: =Savings!G41 -> 316893.5983 | N34: =Savings!H41 -> 334639.6398 | O34: =Savings!I41 -> 353379.4596 | P34: =Savings!J41 -> 373168.7094 | Q34: =Savings!K41 -> 394066.1571 | R34: =Savings!L41 -> 416133.8619 | S34: =Savings!M41 -> 439437.3582 | T34: =Savings!N41 -> 464045.8502 | U34: =Savings!O41 -> 490032.4178 | V34: =Savings!P41 -> 517474.2332 | W34: =Savings!Q41 -> 546452.7903 | X34: =Savings!R41 -> 577054.1465 | Y34: =Savings!S41 -> 609369.1787 | Z34: =Savings!T41 -> 643493.8528 | AA34: =Savings!U41 -> 679529.5085 | AB34: =Savings!V41 -> 717583.161 | AC34: =Savings!W41 -> 757767.818 | AD34: =Savings!X41 -> 800202.8158 | AE34: =Savings!Y41 -> 845014.1735 | AF34: =Savings!Z41 -> 892334.9672
C35: People using DAWASCO sources | M35: =M20 -> 1262990.976 | N35: =N20 -> 1333718.47 | O35: 1408406.705 | P35: 1487277.48 | Q35: 1570565.019 | R35: 1658516.66 | S35: 1751393.593 | T35: 1849471.634 | U35: 1953042.046 | V35: 2062412.4 | W35: 2177907.495 | X35: 2299870.314 | Y35: 2428663.052 | Z35: 2564668.183 | AA35: 2708289.601 | AB35: 2859953.819 | AC35: 3020111.233 | AD35: 3189237.462 | AE35: 3367834.759 | AF35: 3556433.506
D39: Notes
C40: 1 | D40: 2012 Tanzania Population and Housing Census General Report (2013). Table 1. Population projections based on 2012 population and average annual intercensal growth rate.
C41: 2 | D41: 2012 Tanzania Population and Housing Census General Report (2013). Table 5.0. Average annual growth rate assumed to be equivalent to the overall growth rate of the Dar es Salaam Region.
C42: 3 | D42: Percentage of population in each age category based on National Bureau of Statistics (2013). Population Distribution by Age and Sex. Table 1.2, p. vii.
C43: 4 | D43: 2012 Tanzania Population and Housing Census General Report (2013). Table 7.0.
C44: 5 | D44: EWURA (2013). Water Utilities Performance Review Report 2012/13. Table A2.15, p. 123.

Sheet Poverty Scorecard
B1: 0 | K1: Last updated: 2/8/2016
B4: Poverty Scorecard
B7: Tanzania: Lower Ruvu Plant Expansion Activity
B8: =IF('ERR & Sensitivity Analysis'!$I$10="N","Note: Current calculations are based on user input and are not the original MCC estimates.",IF('ERR & Sensitivity Analysis'!$I$13="N","Note: Current calculations are based on user input and are not the original MCC estimates.","")) ->  | K8: Bar Chart Data
C9: 2013 US$ | E9: 2005 PPP $ | K9: Activity/Sub-activity | L9: Lower Ruvu Plant Expansion Activity | M9: National Income Distribution
B10: MCC Cost (Millions US$) | C10: =Costs!C13/10^6 -> 48.82866324 | E10: =C10*(99.991/106.442) -> 45.86936422 | K10: Consump. <$1.25/day | L10: =E32 -> 0.003274903961 | M10: =R18 -> 0.1275879192
B11: 20-Year ERR | C11: =ERR!F48 -> 0.1491469298 | K11: Consump. >=$1.25/day and <$2/day | L11: =F32 -> 0.01710403496 | M11: =R19 -> 0.1963626374
B12: Present Value (PV) of Investment Costs (Millions US$) | C12: =ERR!F45 -> 82.08028975 | E12: =C12*(99.991/106.442) -> 77.1057501 | K12: Consump. >=$2/day and <$4/day | L12: =G32 -> 0.224762964 | M12: 0.2994062735
B13: Present Value (PV) of Benefit Stream (Millions US$) | C13: =ERR!F43 -> 111.9885055 | E13: 105.2013552 | K13: Consump. >$4/day | L13: =H32 -> 1.123429385 | M13: 0.3766431699
E14: Consumption per day (2005 PPP $)
B15: Beneficiaries | C15: Total | E15: < $1.25 | F15: < $2 1 | G15: $2-$4 | H15: > $4
K16: National Poverty Statistics
B17: Beneficiary Households in Year 20 (#) | C17: =Beneficiaries!AF34 -> 892334.9672 | K17: Poverty Category | L17: % of National HH | M17: Avg. HH Size | N17: % of Population | O17: 2028 Est. Pop | P17: Mean Annual Income/Capita | Q17: Total Income/Group | R17: Income Share/Group
B18: Beneficiary Individuals in Year 20 (#) | C18: =Beneficiaries!AF35 -> 3556433.506 | K18: <$1.25 / day | L18: 0.2801 | M18: 6.149358 | N18: =(L18*M18)/SUMPRODUCT(L$18:L$21,M$18:M$21) -> 0.3382852608 | O18: =N18*Beneficiaries!$AF$9 -> 23277491.76 | P18: 0.8848324 | Q18: =O18*P18 -> 20596678.9 | R18: =Q18/SUM(Q$18:Q$21) -> 0.1275879192
B19: National Population in Year 20 2 (#) | C19: =Beneficiaries!AF9 -> 68810245.25 | K19: $1.25 - $1.99 / day | L19: 0.2661 | M19: 5.540188 | N19: =(L19*M19)/SUMPRODUCT(L$18:L$21,M$18:M$21) -> 0.2895406644 | O19: =N19*Beneficiaries!$AF$9 -> 19923364.12 | P19: 1.59105 | Q19: =O19*P19 -> 31699068.49 | R19: =Q19/SUM(Q$18:Q$21) -> 0.1963626374
K20: $2 - $4 / day | L20: 0.2744 | M20: 4.730822 | N20: =(L20*M20)/SUMPRODUCT(L$18:L$21,M$18:M$21) -> 0.2549534567 | O20: =N20*Beneficiaries!$AF$9 -> 17543409.88 | P20: 2.755082 | Q20: 48333532.78 | R20: =Q20/SUM(Q$18:Q$21) -> 0.2994062735
B21: Beneficiary Population by Poverty Level 3 (%) | E21: =L44 -> 0.01533895213 | F21: =L48 -> 0.04985124078 | G21: =L46 -> 0.3311245656 | H21: =L47 -> 0.6190241937 | K21: >$4 / day | L21: 0.1793 | M21: 3.328768 | N21: =(L21*M21)/SUMPRODUCT(L$18:L$21,M$18:M$21) -> 0.1172206181 | O21: =N21*Beneficiaries!$AF$9 -> 8065979.481 | P21: 7.538078 | Q21: 60801982.48 | R21: =Q21/SUM(Q$18:Q$21) -> 0.3766431699
B22: National Population by Poverty Level 3 (%) | E22: =M10 -> 0.1275879192 | F22: =M10+M11 -> 0.3239505566 | G22: =M12 -> 0.2994062735 | H22: =M13 -> 0.3766431699 | K22: < $2.00 / day | L22: =L18+L19 -> 0.5462 | M22: 5.852594 | N22: =N18+N19 -> 0.6278259252 | O22: =N22*Beneficiaries!$AF$9 -> 43200855.88 | P22: 1.228874 | Q22: =O22*P22 -> 53088408.57 | R22: =R18+R19 -> 0.3239505566
L23: =SUM(L18:L21) -> 0.9999 | N23: =SUM(N18:N21) -> 1 | R23: =SUM(R18:R21) -> 1
B24: The Magnitude of the Benefits5 | K24: Beneficiaries using own tap | L24: =Assumptions!C9/SUM(Assumptions!C9:C10) -> 0.25 | M24: of total beneficiaries | P24: =Savings!F50 -> 0.9581589958 | Q24: of total benefits
B25: PV of Benefit Stream Per Beneficiary (2013 US$) | C25: =(C13*10^6)/C18 -> 31.48899179 | E25: =C25*P44 -> 0.07558276164 | F25: =C25*P45 -> 0.2979619158 | G25: =C25*P46 -> 5.187390452 | H25: =C25*P47 -> 25.92805666 | K25: Poverty Category | L25: % of Beneficiary HH | M25: Avg. HH Size | N25: % of Ben. Pop. | O25: 2028 Est. Ben. | P25: Mean Annual Income/Capita | Q25: Total Income/Group | R25: Income Share/Group | S25: % female
B26: PV of Benefit Stream Per Beneficiary (2005 PPP $) | C26: =C25*(99.991/106.442) -> 29.58057701 | E26: =E25*(99.991/106.442) -> 0.07100200973 | F26: =F25*(99.991/106.442) -> 0.2799037027 | G26: 4.873004629 | H26: 24.35666667 | K26: <$1.25 / day | L26: 0 | M26: 0 | N26: =(L26*M26)/SUMPRODUCT(L$26:L$29,M$26:M$29) -> 0 | O26: =N26*Beneficiaries!$AF$15*'Poverty Scorecard'!$L$24 -> 0 | P26: 0 | Q26: =O26*P26 -> 0 | R26: =Q26/SUM(Q$28:Q$30) -> 0 | S26: 0.5164299754
B27: PV of Benefit Stream as Share of Annual Consumption (%) | C27: =C25/(N49*365) -> 0.01442683821 | E27: =E26/(N44*365) -> 0.0002078809721 | F27: =F26/(N45*365) -> 0.0004677273947 | G27: =G26/(N46*365) -> 0.004487561863 | H27: =H26/(N47*365) -> 0.00838931826 | K27: $1.25 - $1.99 / day | L27: 0.0043 | M27: 12 | N27: =(L27*M27)/SUMPRODUCT(L$26:L$29,M$26:M$29) -> 0.01094740679 | O27: =N27*Beneficiaries!$AF$15*'Poverty Scorecard'!$L$24 -> 18718.13669 | P27: 1.41105 | Q27: =O27*P27 -> 26412.22678 | R27: =Q27/SUM(Q$26:Q$29) -> 0.001882554924
K28: $2 - $4 / day | L28: 0.13 | M28: 6.411583 | N28: 0.1768357935 | O28: =N28*Beneficiaries!$AF$15*'Poverty Scorecard'!$L$24 -> 302358.0486 | P28: 3.141369 | Q28: 949818.2009 | R28: 0.06769913595
B29: Cost Effectiveness | K29: >$4 / day | L29: 0.8657 | M29: 4.422247 | N29: 0.8122167997 | O29: =N29*Beneficiaries!$AF$15*'Poverty Scorecard'!$L$24 -> 1388747.616 | P29: 9.399663 | Q29: 13053759.58 | R29: 0.9304183091
K30: < $2.00 / day | L30: =L26+L27 -> 0.0043 | M30: 12 | N30: =N27 -> 0.01094740679 | O30: =N30*Beneficiaries!$AF$15*'Poverty Scorecard'!$L$24 -> 18718.13669 | P30: 1.41105 | Q30: =Q26+Q27 -> 26412.22678 | R30: 0.001882554924
B32: PV of Benefit Stream/PV of Investment Costs | C32: =C13/C12 -> 1.36437756 | E32: =C32*P$44 -> 0.003274903961 | F32: =C32*P$48 -> 0.01710403496 | G32: =C32*P$46 -> 0.224762964 | H32: =C32*P$47 -> 1.123429385 | L32: =SUM(L26:L29) -> 1 | M32: =SUM(L28:L30) -> 1 | N32: =SUM(N26:N29) -> 1 | R32: =SUM(R26:R29) -> 1
B33: PV of Benefit Stream/MCC Costs | C33: =C13/C10 -> 2.29349931 | E33: =C33*P$44 -> 0.005505067068 | F33: =C33*P$48 -> 0.02875163996 | G33: =C33*P$46 -> 0.3778233518 | H33: =C33*P$47 -> 1.888468849 | K33: Beneficiaries using other piped | L33: =Assumptions!C10/SUM(Assumptions!C9:C10) -> 0.75 | M33: of total beneficiaries | N33: =SUM(N28:N30) -> 1 | P33: =Savings!F51 -> 0.04184100418 | Q33: of total benefits | R33: =SUM(R28:R30) -> 1
K34: Poverty Category | L34: % of Beneficiary HH | M34: Avg. HH Size | N34: % of Ben. Pop. | O34: 2028 Est. Ben. | P34: Mean Annual Income/Capita | Q34: Total Income/Group | R34: Income Share/Group | S34: % female
K35: <$1.25 / day | L35: 0.0112 | M35: 7.562219 | N35: =(L35*M35)/SUMPRODUCT(L$35:L$38,M$35:M$38) -> 0.02045193617 | O35: =N35*Beneficiaries!$AF$15*'Poverty Scorecard'!$L$33 -> 104907.6217 | P35: 0.9357569 | Q35: =O35*P35 -> 98168.03087 | R35: =Q35/SUM(Q$35:Q$38) -> 0.003653662911 | S35: 0.5164299754
B36: Percent of Project Participants Who Are Female6 | C36: =(L24*S26)+(L33*S35) -> 0.5164299754 | K36: $1.25 - $1.99 / day | L36: 0.0428 | M36: 4.099391 | N36: =(L36*M36)/SUMPRODUCT(L$35:L$38,M$35:M$38) -> 0.04236724927 | O36: =N36*Beneficiaries!$AF$15*'Poverty Scorecard'!$L$33 -> 217321.5935 | P36: 1.659224 | Q36: =O36*P36 -> 360585.2037 | R36: =Q36/SUM(Q$35:Q$38) -> 0.01342042591
K37: $2 - $4 / day | L37: 0.2775 | M37: 5.709036 | N37: 0.3825541562 | O37: =N37*Beneficiaries!$AF$15*'Poverty Scorecard'!$L$33 -> 1962300.604 | P37: 2.949417 | Q37: 5787642.762 | R37: 0.2154071495
B38: Average Annual Consumption of Beneficiaries (2005 PPP $) | C38: =N49*365 -> 2182.667562 | K38: >$4 / day | L38: 0.6685 | M38: 3.435834 | N38: 0.5546266583 | O38: =N38*Beneficiaries!$AF$15*'Poverty Scorecard'!$L$33 -> 2844941.583 | P38: 7.248652 | Q38: 20621991.5 | R38: 0.7675187617
B39: National Average Income per capita 4 (2005 PPP $) | C39: =2.778978 *365 -> 1014.32697 | K39: < $2.00 / day | L39: =L35+L36 -> 0.054 | M39: 4.81766 | N39: =N35+N36 -> 0.06281918544 | O39: =N39*Beneficiaries!$AF$15*'Poverty Scorecard'!$L$33 -> 322229.2152 | P39: 1.509161 | Q39: =Q35+Q36 -> 458753.2346 | R39: 0.01707408882
B41: National Population (2013) | C41: 46142003.92 | L41: =SUM(L37:L39) -> 1 | N41: =SUM(N37:N39) -> 1 | R41: =SUM(R37:R39) -> 1
K42: Total Beneficiary Statistics | L42: =SUM(L35:L38) -> 1 | N42: =SUM(N35:N38) -> 1 | R42: =SUM(R35:R38) -> 1
B43: NB: PV of benefits based on 10% discount rate, exclude MCC costs, and include local costs | K43: Poverty Category | L43: % of Ben. Population | M43: 2028 Est. Ben. | N43: Mean Annual Income/Capita | O43: Total Income/Group | P43: PV of Benefit Stream / Beneficiary
B44: NB: Beneficiaries for this project are defined as households connected or expected to be connected to the national electricity grid | K44: <$1.25 / day | L44: =M44/SUM(M$44:M$47) -> 0.01533895213 | M44: =O26+O35 -> 104907.6217 | N44: =((O26*P26)+(O35*P35))/M44 -> 0.9357569 | O44: =M44*N44 -> 98168.03087 | P44: =O44/SUM(O$44:O$47) -> 0.002400291573
B45: 1 The beneficiaries and population living on less than $2 per day include those under $1.25 per day | K45: $1.25 - $1.99 / day | L45: =M45/SUM(M$44:M$47) -> 0.03451228865 | M45: =O27+O36 -> 236039.7302 | N45: =((O27*P27)+(O36*P36))/M45 -> 1.639543606 | O45: =M45*N45 -> 386997.4305 | P45: =O45/SUM(O$44:O$47) -> 0.009462415239
B46: 2 Based on 2012 Tanzania Census counts, using the intercensal growth rate (2002-2012) to project to 2028. | K46: $2 - $4 / day | L46: =M46/SUM(M$44:M$47) -> 0.3311245656 | M46: =O28+O37 -> 2264658.653 | N46: =((O28*P28)+(O37*P37))/M46 -> 2.975044806 | O46: 6737460.963 | P46: 0.164736632
B47: 3 Based on MCC calculations using the 2010-11 Tanzania Panel Survey. | K47: >$4 / day | L47: =M47/SUM(M$44:M$47) -> 0.6190241937 | M47: =O29+O38 -> 4233689.199 | N47: =((O29*P29)+(O38*P38))/M47 -> 7.954233175 | O47: 33675751.07 | P47: 0.8234006612
B48: 4 Based on MCC calculations using the 2010-11 Tanzania Panel Survey. | K48: < $2.00 / day | L48: =M48/SUM(M$44:M$47) -> 0.04985124078 | M48: =O30+O39 -> 340947.3519 | N48: =((O30*P30)+(O39*P39))/M48 -> 1.50377467 | O48: 512707.9915 | P48: 0.01253614502
B49: 5 The distribution of benefits is based on current distribution of income and average water consumption. | L49: =SUM(L44:L47) -> 1 | N49: =SUMPRODUCT(L44:L47,N44:N47) -> 5.979911128 | O49: 0 | P49: =SUM(P46:P48) -> 1.000673438
B50: 6 Based on MCC calculations using the 2010-11 Tanzania Panel Survey. | P50: =SUM(P44:P47) -> 1

Sheet Sensitivity
A1: 0 | B1: Tanzania: Lower Ruvu Plant Expansion Activity | J1: Last updated: 2/8/2016
B2: Sensitivity Analysis
C4: Basic sensitivity analysis using summary parameters
C6: Economic Rate of Return (ERR) | H6: Net Present Value (NPV), millions US$
C7: Column1 | D7: 80% Benefits | E7: 100% Benefits | F7: 120% Benefits | H7: Column1 | I7: 80% Benefits | J7: 100% Benefits | K7: 120% Benefits
C8: 80% Costs | D8: 0.126 | E8: 0.189 | F8: 0.243 | H8: 80% Costs | I8: 11.9 | J8: 46.3 | K8: 80.7
C9: 100% Costs | D9: 0.092 | E9: 0.149 | F9: 0.197 | H9: 100% Costs | I9: -4.5 | J9: 29.9 | K9: 64.3
C10: 120% Costs | D10: 0.066 | E10: 0.119 | F10: 0.164 | H10: 120% Costs | I10: -20.9 | J10: 13.5 | K10: 47.9
C12: Sensitivity analysis using Monte Carlo simulation
F13: Crystal Ball Report - Full
F14: Simulation started on 2/8/2016 at 3:53 PM
F15: Simulation stopped on 2/8/2016 at 3:54 PM
B17: Run preferences:
C18: Number of trials run | E18: 10000
C19: Monte Carlo
C20: Random seed
C21: Precision control on
C22: Confidence level | E22: 0.95
B24: Run statistics:
C25: Total running time (sec) | E25: 33.79464272
C26: Trials/second (average) | E26: 295.9048889
C27: Random numbers per sec | E27: 2071.334222
B29: Crystal Ball data:
C30: Assumptions | E30: 7
C31: Correlations | E31: 3
C32: Correlated groups | E32: 1
C33: Decision variables | E33: 0
C34: Forecasts | E34: 4
F36: Forecasts
A39: Worksheet: [TZA-Ruvu-ERR-020816.xlsm]ERR
A41: Forecast: Economic Rate of Return (ERR) | J41: Cell: F48
B43: Summary:
C44: Certainty level is 85.53%
C45: Certainty range is from 10.0% to Infinity
C46: Entire range is from -0.9% to 40.6%
C47: Base case is 14.9%
C48: After 10,000 trials, the std. error of the mean is 0.0%
B68: Statistics: | E68: Forecast values
C69: Trials | E69: 10000
C70: Base Case | E70: 0.1491469298
C71: Mean | E71: 0.1501710169
C72: Median | E72: 0.1485944319
C73: Mode | E73: ---
C74: Standard Deviation | E74: 0.04823980014
C75: Variance | E75: 0.002327078318
C76: Skewness | E76: 0.2760246332
C77: Kurtosis | E77: 3.375107194
C78: Coeff. of Variability | E78: 0.3212324265
C79: Minimum | E79: -0.00900199504
C80: Maximum | E80: 0.4056128826
C81: Range Width | E81: 0.4146148777
C82: Mean Std. Error | E82: 0.0004823980014
A84: Forecast: Economic Rate of Return (ERR) (cont'd) | J84: Cell: F48
B86: Percentiles: | E86: Forecast values
C87: 100% | E87: -0.00900199504
C88: 90% | E88: 0.09013574572
C89: 80% | E89: 0.1097299729
C90: 70% | E90: 0.1242477873
C91: 60% | E91: 0.1362271658
C92: 50% | E92: 0.1485888717
C93: 40% | E93: 0.1603430576
C94: 30% | E94: 0.1733841641
C95: 20% | E95: 0.1888277055
C96: 10% | E96: 0.2121296765
C97: 0% | E97: 0.4056128826
A99: Forecast: Net Present Value (NPV) | J99: Cell: F46
B101: Summary:
C102: Certainty level is 85.53%
C103: Certainty range is from $0.0 to Infinity
C104: Entire range is from $(47.5) to $250.5
C105: Base case is $29.9
C106: After 10,000 trials, the std. error of the mean is $0.3
B126: Statistics: | E126: Forecast values
C127: Trials | E127: 10000
C128: Base Case | E128: 29.90821572
C129: Mean | E129: 33.10739698
C130: Median | E130: 29.72261312
C131: Mode | E131: ---
C132: Standard Deviation | E132: 32.67389023
C133: Variance | E133: 1067.583103
C134: Skewness | E134: 0.7573273352
C135: Kurtosis | E135: 4.264954343
C136: Coeff. of Variability | E136: 0.9869060454
C137: Minimum | E137: -47.50649667
C138: Maximum | E138: 250.4776786
C139: Range Width | E139: 297.9841753
C140: Mean Std. Error | E140: 0.3267389023
A142: Forecast: Net Present Value (NPV) (cont'd) | J142: Cell: F46
B144: Percentiles: | E144: Forecast values
C145: 100% | E145: -47.50649667
C146: 90% | E146: -5.430854721
C147: 80% | E147: 5.5357906
C148: 70% | E148: 14.26874334
C149: 60% | E149: 21.78022878
C150: 50% | E150: 29.71890759
C151: 40% | E151: 37.84200046
C152: 30% | E152: 46.80996846
C153: 20% | E153: 58.04198406
C154: 10% | E154: 75.75270267
C155: 0% | E155: 250.4776786
A157: Forecast: Present Value of Benefits | J157: Cell: F43
B159: Summary:
C160: Entire range is from $34.6 to $332.6
C161: Base case is $112.0
C162: After 10,000 trials, the std. error of the mean is $0.3
B182: Statistics: | E182: Forecast values
C183: Trials | E183: 10000
C184: Base Case | E184: 111.9885055
C185: Mean | E185: 115.1876867
C186: Median | E186: 111.8029029
C187: Mode | E187: ---
C188: Standard Deviation | E188: 32.67389023
C189: Variance | E189: 1067.583103
C190: Skewness | E190: 0.7573273352
C191: Kurtosis | E191: 4.264954343
C192: Coeff. of Variability | E192: 0.2836578384
C193: Minimum | E193: 34.57379308
C194: Maximum | E194: 332.5579684
C195: Range Width | E195: 297.9841753
C196: Mean Std. Error | E196: 0.3267389023
A198: Forecast: Present Value of Benefits (cont'd) | J198: Cell: F43
B200: Percentiles: | E200: Forecast values
C201: 100% | E201: 34.57379308
C202: 90% | E202: 76.64943503
C203: 80% | E203: 87.61608035
C204: 70% | E204: 96.34903309
C205: 60% | E205: 103.8605185
C206: 50% | E206: 111.7991973
C207: 40% | E207: 119.9222902
C208: 30% | E208: 128.8902582
C209: 20% | E209: 140.1222738
C210: 10% | E210: 157.8329924
C211: 0% | E211: 332.5579684
A213: Forecast: Present Value of Costs | J213: Cell: F45
B215: Summary:
C216: Entire range is from $82.1 to $82.1
C217: Base case is $82.1
C218: After 10,000 trials, the std. error of the mean is $0.0
B238: Statistics: | E238: Forecast values
C239: Trials | E239: 10000
C240: Base Case | E240: 82.08028975
C241: Mean | E241: 82.08028975
C242: Median | E242: 82.08028975
C243: Mode | E243: 82.08028975
C244: Standard Deviation | E244: 0
C245: Variance | E245: 0
C246: Skewness | E246: ---
C247: Kurtosis | E247: ---
C248: Coeff. of Variability | E248: 0
C249: Minimum | E249: 82.08028975
C250: Maximum | E250: 82.08028975
C251: Range Width | E251: 0
C252: Mean Std. Error | E252: 0
A254: Forecast: Present Value of Costs (cont'd) | J254: Cell: F45
B256: Percentiles: | E256: Forecast values
C257: 100% | E257: 82.08028975
C258: 90% | E258: 82.08028975
C259: 80% | E259: 82.08028975
C260: 70% | E260: 82.08028975
C261: 60% | E261: 82.08028975
C262: 50% | E262: 82.08028975
C263: 40% | E263: 82.08028975
C264: 30% | E264: 82.08028975
C265: 20% | E265: 82.08028975
C266: 10% | E266: 82.08028975
C267: 0% | E267: 82.08028975
A269: End of Forecasts
F270: Assumptions
A273: Worksheet: [TZA-Ruvu-ERR-020816.xlsm]ERR & Sensitivity Analysis
A275: Assumption: Anticipated reduction in cases of disease (% of counterfactual) | J275: Cell: D17
B277: Triangular distribution with parameters:
C278: Minimum | E278: 0
C279: Likeliest | E279: 0.17
C280: Maximum | E280: 0.35
A285: Assumption: Cost of energy used to boil water (USD/kWh) | J285: Cell: D14
B287: Triangular distribution with parameters:
C288: Minimum | E288: 0.16
C289: Likeliest | E289: 0.2155
C290: Maximum | E290: 0.24
B295: Correlated with: | H295: Coefficient
C296: Volume of water treated by households (liters) (D13) | H296: -0.5
C297: Total cost per unit of water delivered (US$/m3) (D19) | H297: 0.25
A299: Assumption: Phase-in period of health benefits (years) | J299: Cell: D18
B301: Discrete Uniform distribution with parameters:
C302: Minimum | E302: 1
C303: Maximum | E303: 5
A309: Assumption: Proportion of NRW that is technical loss (%) | J309: Cell: D16
B311: Triangular distribution with parameters:
C312: Minimum | E312: 0.6
C313: Likeliest | E313: 0.8
C314: Maximum | E314: 0.9
A319: Assumption: Total cost per unit of water delivered (US$/m3) | J319: Cell: D19
B321: Triangular distribution with parameters:
C322: Minimum | E322: 0.4
C323: Likeliest | E323: 0.9
C324: Maximum | E324: 1
B329: Correlated with: | H329: Coefficient
C330: Value of commercial water (Tsh/m3) (D15) | H330: 0.5
C331: Cost of energy used to boil water (USD/kWh) (D14) | H331: 0.25
A333: Assumption: Value of commercial water (Tsh/m3) | J333: Cell: D15
... 14 more rows
